Organisation Name (A),Department (B),Service Cat Label (C ),Purpose of Spend (D),Expenditure CIPFA Sub Group (E ),Supplier (F),Supplier Reference (G),Pay Date (H),Transaction Number (I),Net Amount (J),Grant to VCSE? (K),Charity Number (L),Card Transaction (M),Irrecoverable VAT (N),,
Pendle Borough Council,Property Services,Premises Related Expense,Bldgs : R & M : Day To Day,2001,ATKINSON CLEANING SERVICES LTD,A0000010, 08/11/2018,EST0291774,85.00,N,N/A,N,N/A,,
Pendle Borough Council,Property Services,Premises Related Expense,Bldgs : R & M : Day To Day,2001,ATKINSON CLEANING SERVICES LTD,A0000010, 08/11/2018,EST0291818,110.00,N,N/A,N,N/A,,
Pendle Borough Council,Property Services,Premises Related Expense,Bldgs : R & M : Day To Day,2001,ATKINSON CLEANING SERVICES LTD,A0000010, 08/11/2018,EST0291785,110.00,N,N/A,N,N/A,,
Pendle Borough Council,Property Services,Premises Related Expense,Bldgs : R & M : Day To Day,2001,ATKINSON CLEANING SERVICES LTD,A0000010, 08/11/2018,EST0291819,110.00,N,N/A,N,N/A,,
Pendle Borough Council,Property Services,Premises Related Expense,Bldgs : R & M : Day To Day,2001,ATKINSON CLEANING SERVICES LTD,A0000010, 08/11/2018,EST0291772,110.00,N,N/A,N,N/A,,
Pendle Borough Council,Property Services,Premises Related Expense,Bldgs : R & M : Day To Day,2001,ATKINSON CLEANING SERVICES LTD,A0000010, 08/11/2018,EST0291776,110.00,N,N/A,N,N/A,,
Pendle Borough Council,Property Services,Premises Related Expense,Bldgs : R & M : Day To Day,2001,ATKINSON CLEANING SERVICES LTD,A0000010, 08/11/2018,EST0291771,90.00,N,N/A,N,N/A,,
Pendle Borough Council,Property Services,Premises Related Expense,Bldgs : R & M : Day To Day,2001,ATKINSON CLEANING SERVICES LTD,A0000010, 08/11/2018,EST0291775,90.00,N,N/A,N,N/A,,
Pendle Borough Council,Property Services,Premises Related Expense,Bldgs : R & M : Day To Day,2001,ATKINSON CLEANING SERVICES LTD,A0000010, 08/11/2018,EST0291769,110.00,N,N/A,N,N/A,,
Pendle Borough Council,Property Services,Premises Related Expense,Bldgs : R & M : Day To Day,2001,ATKINSON CLEANING SERVICES LTD,A0000010, 08/11/2018,EST0291817,110.00,N,N/A,N,N/A,,
Pendle Borough Council,Parks & Recreation Services,Transport Related Expense,Tprt : Repairs : General,3105,BALMERS GM LIMITED,A0000198, 22/11/2018,PCO0292104,22.68,N,N/A,N,N/A,,
Pendle Borough Council,Parks & Recreation Services,Transport Related Expense,Tprt : Repairs : General,3105,BALMERS GM LIMITED,A0000198, 22/11/2018,PCO4005968,-29.14,N,N/A,N,N/A,,
Pendle Borough Council,Parks & Recreation Services,Transport Related Expense,Tprt : Repairs : General,3105,BALMERS GM LIMITED,A0000198, 22/11/2018,PCO0292104,17.57,N,N/A,N,N/A,,
Pendle Borough Council,Parks & Recreation Services,Transport Related Expense,Lubricants,3203,BALMERS GM LIMITED,A0000198, 22/11/2018,PCO0292104,57.07,N,N/A,N,N/A,,
Pendle Borough Council,Parks & Recreation Services,Transport Related Expense,Lubricants,3203,BALMERS GM LIMITED,A0000198, 22/11/2018,PCO0292104,543.40,N,N/A,N,N/A,,
Pendle Borough Council,Parks & Recreation Services,Supplies and Services,Expenditure : Materials,0002,BARNES JB LIMITED,A0000202, 29/11/2018,PCO0292284,15.99,N,N/A,N,N/A,,
Pendle Borough Council,Operational Services,Premises Related Expense,Bldgs : R & M : Day To Day,2001,BARNES JB LIMITED,A0000202, 08/11/2018,OPS0291873,34.97,N,N/A,N,N/A,,
Pendle Borough Council,Operational Services,Transport Related Expense,Tprt : Repairs : General,3105,BARNES JB LIMITED,A0000202, 08/11/2018,OPS0291872,7.41,N,N/A,N,N/A,,
Pendle Borough Council,Environmental Health Services,Supplies and Services,EFM : Other Equipment,4003,BARNES JB LIMITED,A0000202, 08/11/2018,ENV0291805,18.42,N,N/A,N,N/A,,
Pendle Borough Council,Economic Development & Tourism,Supplies and Services,EFM : Other Equipment,4003,BARNES JB LIMITED,A0000202, 29/11/2018,REG0292187,137.50,N,N/A,N,N/A,,
Pendle Borough Council,Economic Development & Tourism,Supplies and Services,EFM Materials,4004,BARNES JB LIMITED,A0000202, 29/11/2018,REG0292188,33.94,N,N/A,N,N/A,,
Pendle Borough Council,Economic Development & Tourism,Supplies and Services,EFM Materials,4004,BARNES JB LIMITED,A0000202, 29/11/2018,REG0292186,137.50,N,N/A,N,N/A,,
Pendle Borough Council,Operational Services,Supplies and Services,EFM Materials,4004,BARNES JB LIMITED,A0000202, 29/11/2018,OPS0292280,37.01,N,N/A,N,N/A,,
Pendle Borough Council,Operational Services,Supplies and Services,Sub-Contractors,4007,BARNES JB LIMITED,A0000202, 08/11/2018,OPS0291895,32.70,N,N/A,N,N/A,,
Pendle Borough Council,Economic Development & Tourism,Supplies and Services,Miscellaneous : Other,4707,BARNES JB LIMITED,A0000202, 29/11/2018,REG0292186,580.00,N,N/A,N,N/A,,
Pendle Borough Council,Parks & Recreation Services,Premises Related Expense,Grounds : R & M : Day to Day : Routine,2101,BEARING FACTORS,A0000205, 22/11/2018,PCO0292115,163.36,N,N/A,N,N/A,,
Pendle Borough Council,Engineering & Special Projects,Capital Costs,Capital : Payments,CD14,BARROWFORD PARISH COUNCIL,A0000239, 08/11/2018,HED0291763,817.00,N,N/A,N,N/A,,
Pendle Borough Council,Parks & Recreation Services,Transport Related Expense,Tprt : Repairs : General,3105,BOC GASES LTD,A0000386, 15/11/2018,PCO0291955,16.65,N,N/A,N,N/A,,
Pendle Borough Council,Parks & Recreation Services,Transport Related Expense,Tprt : Repairs : General,3105,BOC GASES LTD,A0000386, 08/11/2018,PCO0291801,18.65,N,N/A,N,N/A,,
Pendle Borough Council,Parks & Recreation Services,Premises Related Expense,Grounds : R & M : Day to Day : Routine,2101,CB EXCAVATORS LTD,A0000396, 08/11/2018,PCO0291792,161.00,N,N/A,N,N/A,,
Pendle Borough Council,Engineering & Special Projects,,Paid in the Year,PD03,CB EXCAVATORS LTD,A0000396, 08/11/2018,HED0291864,2295.00,N,N/A,N,N/A,,
Pendle Borough Council,Property Services,Capital Costs,Capital : Payments,CD14,GEORGE BOOCOCK DECORATORS LTD,A0000427, 15/11/2018,EST0291966,5249.00,N,N/A,N,N/A,,
Pendle Borough Council,Property Services,Premises Related Expense,Bldgs : R & M : Day To Day,2001,BARROWFORD SAFE & LOCK SERV LT,A0000458, 08/11/2018,EST0291784,79.75,N,N/A,N,N/A,,
Pendle Borough Council,Property Services,Capital Costs,Capital : Payments,CD14,BARROWFORD SAFE & LOCK SERV LT,A0000458, 15/11/2018,EST0291965,130.50,N,N/A,N,N/A,,
Pendle Borough Council,Parks & Recreation Services,Premises Related Expense,Grounds : R & M : Day to Day : Routine,2101,BRIGGS & DUXBURY LTD,A0000459, 15/11/2018,PCO0291950,65.00,N,N/A,N,N/A,,
Pendle Borough Council,Operational Services,Premises Related Expense,Bldgs : R & M : Day To Day,2001,BARROWFORD SAFE & LOCK & BB LOCKSMITHS,A0000510, 22/11/2018,OPS0292099,3.75,N,N/A,N,N/A,,
Pendle Borough Council,Operational Services,Premises Related Expense,Bldgs : R & M : Day To Day,2001,BARROWFORD SAFE & LOCK & BB LOCKSMITHS,A0000510, 22/11/2018,OPS0292099,9.00,N,N/A,N,N/A,,
Pendle Borough Council,Parks & Recreation Services,Transport Related Expense,Tprt : Repairs : General,3105,BARROWFORD SAFE & LOCK & BB LOCKSMITHS,A0000510, 15/11/2018,PCO0291936,3.92,N,N/A,N,N/A,,
Pendle Borough Council,Economic Development & Tourism,Supplies and Services,Miscellaneous : Other,4707,R J CLOUGH & SON LTD,A0000567, 08/11/2018,REG0291639,55.00,N,N/A,N,N/A,,
Pendle Borough Council,Economic Development & Tourism,Supplies and Services,Miscellaneous : Other,4707,R J CLOUGH & SON LTD,A0000567, 08/11/2018,REG0291837,105.00,N,N/A,N,N/A,,
Pendle Borough Council,Housing Regeneration Services,Premises Related Expense,Bldgs : R & M : Abnormal,2002,MARTIN COLLINS JOINERY & GLAZING,A0000623, 08/11/2018,HMR0291806,38.00,N,N/A,N,N/A,,
Pendle Borough Council,Environmental Health Services,Premises Related Expense,Bldgs : R & M : Abnormal,2002,MARTIN COLLINS JOINERY & GLAZING,A0000623, 29/11/2018,ENV0292171,66.00,N,N/A,N,N/A,,
Pendle Borough Council,Housing Regeneration Services,Capital Costs,Capital : Payments,CD14,MARTIN COLLINS JOINERY & GLAZING,A0000623, 01/11/2018,HMR0291680,25.00,N,N/A,N,N/A,,
Pendle Borough Council,Housing Regeneration Services,Capital Costs,Capital : Payments,CD14,MARTIN COLLINS JOINERY & GLAZING,A0000623, 01/11/2018,HMR0291681,60.00,N,N/A,N,N/A,,
Pendle Borough Council,Financial Services,,Temporary Investments,B120,SALFORD CITY COUNCIL,A0000672, 16/11/2018,AAS0292041,2000000.00,N,N/A,N,N/A,,
Pendle Borough Council,Parks & Recreation Services,Indirect Employee Expenses,Training,1211,CRAVEN COLLEGE,A0000735, 15/11/2018,PCO0291942,835.00,N,N/A,N,N/A,,
Pendle Borough Council,Democratic & Legal Services,Supplies and Services,Other Expenses,4705,CARRO-STEP PRINT SERVICES,A0000853, 08/11/2018,DAL0291770,320.00,N,N/A,N,N/A,,
Pendle Borough Council,Economic Development & Tourism,Supplies and Services,Miscellaneous : Other,4707,D & H PRECAST PRODUCTS,A0000874, 22/11/2018,REG0292095,60.00,N,N/A,N,N/A,,
Pendle Borough Council,Economic Development & Tourism,Supplies and Services,Protective Clothing,4201,ENGINEERING & FOUNDRY SUPPLIES,A0001002, 08/11/2018,REG0291768,48.00,N,N/A,N,N/A,,
Pendle Borough Council,Operational Services,,Stock : Purchases,PJ01,ENGINEERING & FOUNDRY SUPPLIES,A0001002, 01/11/2018,OPS0291713,1.50,N,N/A,N,N/A,,
Pendle Borough Council,Operational Services,,Stock : Purchases,PJ01,ENGINEERING & FOUNDRY SUPPLIES,A0001002, 22/11/2018,OPS0292127,38.00,N,N/A,N,N/A,,
Pendle Borough Council,Operational Services,,Stock : Purchases,PJ01,ENGINEERING & FOUNDRY SUPPLIES,A0001002, 29/11/2018,OPS0292281,40.95,N,N/A,N,N/A,,
Pendle Borough Council,Operational Services,,Stock : Purchases,PJ01,ENGINEERING & FOUNDRY SUPPLIES,A0001002, 01/11/2018,OPS0291701,45.60,N,N/A,N,N/A,,
Pendle Borough Council,Operational Services,,Stock : Purchases,PJ01,ENGINEERING & FOUNDRY SUPPLIES,A0001002, 01/11/2018,OPS0291701,81.90,N,N/A,N,N/A,,
Pendle Borough Council,Operational Services,,Stock : Purchases,PJ01,ENGINEERING & FOUNDRY SUPPLIES,A0001002, 01/11/2018,OPS0291701,81.90,N,N/A,N,N/A,,
Pendle Borough Council,Operational Services,,Stock : Purchases,PJ01,ENGINEERING & FOUNDRY SUPPLIES,A0001002, 01/11/2018,OPS0291701,91.20,N,N/A,N,N/A,,
Pendle Borough Council,Operational Services,,Stock : Purchases,PJ01,ENGINEERING & FOUNDRY SUPPLIES,A0001002, 22/11/2018,OPS0292134,91.20,N,N/A,N,N/A,,
Pendle Borough Council,Operational Services,,Stock : Purchases,PJ01,ENGINEERING & FOUNDRY SUPPLIES,A0001002, 22/11/2018,OPS0292134,113.94,N,N/A,N,N/A,,
Pendle Borough Council,Operational Services,,Stock : Purchases,PJ01,ENGINEERING & FOUNDRY SUPPLIES,A0001002, 22/11/2018,OPS0292134,180.00,N,N/A,N,N/A,,
Pendle Borough Council,Engineering & Special Projects,Capital Costs,Capital : Payments,CD14,EARBY TOWN COUNCIL,A0001004, 29/11/2018,HED0292191,4832.00,N,N/A,N,N/A,,
Pendle Borough Council,Operational Services,Transport Related Expense,Tprt : Repairs : General,3105,FREIGHT TRANSPORT ASSOCIATION,A0001124, 29/11/2018,OPS0292269,24.00,N,N/A,N,N/A,,
Pendle Borough Council,Parks & Recreation Services,Transport Related Expense,Tprt : Repairs : General,3105,GIBSONS GARDEN MACHINERY LTD,A0001201, 15/11/2018,PCO0291946,82.96,N,N/A,N,N/A,,
Pendle Borough Council,Parks & Recreation Services,Transport Related Expense,Tprt : Repairs : General,3105,GIBSONS GARDEN MACHINERY LTD,A0001201, 15/11/2018,PCO0291951,28.09,N,N/A,N,N/A,,
Pendle Borough Council,Environmental Health Services,Supplies and Services,EFM : Other Equipment,4003,JEWSON LIMITED,A0001323, 29/11/2018,ENV0292292,70.00,N,N/A,N,N/A,,
Pendle Borough Council,Economic Development & Tourism,Supplies and Services,EFM Materials,4004,JEWSON LIMITED,A0001323, 08/11/2018,REG0291635,36.00,N,N/A,N,N/A,,
Pendle Borough Council,Operational Services,Supplies and Services,EFM Materials,4004,JEWSON LIMITED,A0001323, 29/11/2018,OPS0292270,6.25,N,N/A,N,N/A,,
Pendle Borough Council,Operational Services,Supplies and Services,EFM Materials,4004,JEWSON LIMITED,A0001323, 29/11/2018,OPS0292270,7.59,N,N/A,N,N/A,,
Pendle Borough Council,Operational Services,Supplies and Services,EFM Materials,4004,JEWSON LIMITED,A0001323, 08/11/2018,OPS0291904,50.00,N,N/A,N,N/A,,
Pendle Borough Council,Operational Services,Supplies and Services,Other Expenses,4705,JEWSON LIMITED,A0001323, 22/11/2018,OPS0292094,99.69,N,N/A,N,N/A,,
Pendle Borough Council,Operational Services,Supplies and Services,Other Expenses,4705,JEWSON LIMITED,A0001323, 29/11/2018,OPS0292261,99.69,N,N/A,N,N/A,,
Pendle Borough Council,Economic Development & Tourism,Supplies and Services,Miscellaneous : Other,4707,JEWSON LIMITED,A0001323, 08/11/2018,REG0291728,13.86,N,N/A,N,N/A,,
Pendle Borough Council,Economic Development & Tourism,Supplies and Services,Miscellaneous : Other,4707,JEWSON LIMITED,A0001323, 22/11/2018,REG0292020,31.91,N,N/A,N,N/A,,
Pendle Borough Council,Economic Development & Tourism,Supplies and Services,Miscellaneous : Other,4707,JEWSON LIMITED,A0001323, 08/11/2018,REG0291836,50.00,N,N/A,N,N/A,,
Pendle Borough Council,Economic Development & Tourism,Supplies and Services,Miscellaneous : Other,4707,JEWSON LIMITED,A0001323, 08/11/2018,REG0291729,59.64,N,N/A,N,N/A,,
Pendle Borough Council,Economic Development & Tourism,Supplies and Services,Miscellaneous : Other,4707,JEWSON LIMITED,A0001323, 08/11/2018,REG0291730,75.00,N,N/A,N,N/A,,
Pendle Borough Council,Economic Development & Tourism,Supplies and Services,Miscellaneous : Other,4707,JEWSON LIMITED,A0001323, 22/11/2018,REG0292021,79.52,N,N/A,N,N/A,,
Pendle Borough Council,Economic Development & Tourism,Supplies and Services,Miscellaneous : Other,4707,JEWSON LIMITED,A0001323, 22/11/2018,REG0292022,109.35,N,N/A,N,N/A,,
Pendle Borough Council,Economic Development & Tourism,Supplies and Services,Miscellaneous : Other,4707,JEWSON LIMITED,A0001323, 08/11/2018,REG0291636,162.62,N,N/A,N,N/A,,
Pendle Borough Council,Operational Services,Premises Related Expense,Bldgs : R & M : Day To Day,2001,J HARGREAVES,A0001359, 22/11/2018,OPS0292145,96.00,N,N/A,N,N/A,,
Pendle Borough Council,Parks & Recreation Services,Premises Related Expense,Bldgs : R & M : Day To Day,2001,J HARGREAVES,A0001359, 08/11/2018,PCO0291798,25.00,N,N/A,N,N/A,,
Pendle Borough Council,Engineering & Special Projects,,Other Grants & Contributions,9104,PENDLESIDE HOSPICE,A0001413, 08/11/2018,HED0291764,2154.73,N,N/A,N,N/A,,
Pendle Borough Council,Financial Services,Supplies and Services,Seminars etc All Costs,4601,CIPFA BUSINESS LIMITED,A0001556, 22/11/2018,AAS0292073,195.00,N,N/A,N,N/A,,
Pendle Borough Council,Environmental Health Services,Supplies and Services,EFM : Other Equipment,4003,KILLGERM CHEMICALS LTD,A0001624, 15/11/2018,ENV4005966,-40.20,N,N/A,N,N/A,,
Pendle Borough Council,Environmental Health Services,Supplies and Services,EFM : Other Equipment,4003,KILLGERM CHEMICALS LTD,A0001624, 15/11/2018,ENV0292013,11.10,N,N/A,N,N/A,,
Pendle Borough Council,Environmental Health Services,Supplies and Services,EFM : Other Equipment,4003,KILLGERM CHEMICALS LTD,A0001624, 08/11/2018,ENV0291789,19.10,N,N/A,N,N/A,,
Pendle Borough Council,Environmental Health Services,Supplies and Services,EFM : Other Equipment,4003,KILLGERM CHEMICALS LTD,A0001624, 08/11/2018,ENV0291791,37.10,N,N/A,N,N/A,,
Pendle Borough Council,Environmental Health Services,Supplies and Services,EFM : Other Equipment,4003,KILLGERM CHEMICALS LTD,A0001624, 15/11/2018,ENV0292012,37.10,N,N/A,N,N/A,,
Pendle Borough Council,Parks & Recreation Services,Supplies and Services,Expenditure : Materials,0002,LANLEE SUPPLIES LIMITED,A0001672, 22/11/2018,PCO0292114,3.87,N,N/A,N,N/A,,
Pendle Borough Council,Parks & Recreation Services,Supplies and Services,Expenditure : Materials,0002,LANLEE SUPPLIES LIMITED,A0001672, 22/11/2018,PCO0292114,6.24,N,N/A,N,N/A,,
Pendle Borough Council,Parks & Recreation Services,Supplies and Services,Expenditure : Materials,0002,LANLEE SUPPLIES LIMITED,A0001672, 15/11/2018,PCO0291938,23.93,N,N/A,N,N/A,,
Pendle Borough Council,Parks & Recreation Services,Supplies and Services,Expenditure : Materials,0002,LANLEE SUPPLIES LIMITED,A0001672, 22/11/2018,PCO0292113,70.71,N,N/A,N,N/A,,
Pendle Borough Council,Parks & Recreation Services,Supplies and Services,Expenditure : Materials,0002,LANLEE SUPPLIES LIMITED,A0001672, 01/11/2018,PCO0291711,159.25,N,N/A,N,N/A,,
Pendle Borough Council,Economic Development & Tourism,Premises Related Expense,Bldgs : R & M : Day To Day,2001,LANLEE SUPPLIES LIMITED,A0001672, 08/11/2018,REG0291633,21.91,N,N/A,N,N/A,,
Pendle Borough Council,Parks & Recreation Services,Premises Related Expense,Grounds : R & M : Day to Day : Routine,2101,LANLEE SUPPLIES LIMITED,A0001672, 29/11/2018,PCO0292275,156.34,N,N/A,N,N/A,,
Pendle Borough Council,Economic Development & Tourism,Supplies and Services,EFM Materials,4004,LANLEE SUPPLIES LIMITED,A0001672, 08/11/2018,REG0291634,13.64,N,N/A,N,N/A,,
Pendle Borough Council,Economic Development & Tourism,Supplies and Services,Miscellaneous : Other,4707,LANLEE SUPPLIES LIMITED,A0001672, 29/11/2018,REG0292185,17.11,N,N/A,N,N/A,,
Pendle Borough Council,Economic Development & Tourism,Supplies and Services,Miscellaneous : Other,4707,LANLEE SUPPLIES LIMITED,A0001672, 08/11/2018,REG0291638,26.92,N,N/A,N,N/A,,
Pendle Borough Council,Economic Development & Tourism,Supplies and Services,Miscellaneous : Other,4707,LANLEE SUPPLIES LIMITED,A0001672, 29/11/2018,REG0292184,28.62,N,N/A,N,N/A,,
Pendle Borough Council,Economic Development & Tourism,Supplies and Services,Miscellaneous : Other,4707,LANLEE SUPPLIES LIMITED,A0001672, 22/11/2018,REG0292017,35.14,N,N/A,N,N/A,,
Pendle Borough Council,Economic Development & Tourism,Supplies and Services,Miscellaneous : Other,4707,LANLEE SUPPLIES LIMITED,A0001672, 22/11/2018,REG0292018,36.83,N,N/A,N,N/A,,
Pendle Borough Council,Economic Development & Tourism,Supplies and Services,Miscellaneous : Other,4707,LANLEE SUPPLIES LIMITED,A0001672, 08/11/2018,REG0291766,45.02,N,N/A,N,N/A,,
Pendle Borough Council,Economic Development & Tourism,Supplies and Services,Miscellaneous : Other,4707,LANLEE SUPPLIES LIMITED,A0001672, 08/11/2018,REG0291727,54.27,N,N/A,N,N/A,,
Pendle Borough Council,Economic Development & Tourism,Supplies and Services,Miscellaneous : Other,4707,LANLEE SUPPLIES LIMITED,A0001672, 08/11/2018,REG0291767,55.59,N,N/A,N,N/A,,
Pendle Borough Council,Economic Development & Tourism,Supplies and Services,Miscellaneous : Other,4707,LANLEE SUPPLIES LIMITED,A0001672, 08/11/2018,REG0291765,61.50,N,N/A,N,N/A,,
Pendle Borough Council,Economic Development & Tourism,Supplies and Services,Miscellaneous : Other,4707,LANLEE SUPPLIES LIMITED,A0001672, 22/11/2018,REG0292096,153.72,N,N/A,N,N/A,,
Pendle Borough Council,Parks & Recreation Services,Supplies and Services,Expenditure : Materials,0002,LBS WORLDWIDE LIMITED,A0001673, 15/11/2018,PCO0291940,17.65,N,N/A,N,N/A,,
Pendle Borough Council,Engineering & Special Projects,Premises Related Expense,Grounds : R & M : Day to Day : Routine,2101,LANCASHIRE COUNTY COUNCIL,A0001690, 15/11/2018,HED0292010,3010.00,N,N/A,N,N/A,,
Pendle Borough Council,Democratic & Legal Services,Supplies and Services,Search Fees,4404,LANCASHIRE COUNTY COUNCIL,A0001690, 08/11/2018,DAL0291778,399.00,N,N/A,N,N/A,,
Pendle Borough Council,Engineering & Special Projects,Capital Costs,Capital : Payments,CD14,LANCASHIRE COUNTY COUNCIL,A0001690, 15/11/2018,HED0292010,8775.00,N,N/A,N,N/A,,
Pendle Borough Council,Human Resources,Indirect Employee Expenses,Training,1211,LEEDS BECKETT UNIVERSITY,A0001706, 08/11/2018,PER0291797,2888.00,N,N/A,N,N/A,,
Pendle Borough Council,Operational Services,Premises Related Expense,Grounds : R & M : Day to Day : Routine,2101,JOHN MACADAM & SON (RESCUE) LTD,A0001846, 29/11/2018,OPS0292152,45.00,N,N/A,N,N/A,,
Pendle Borough Council,Operational Services,Premises Related Expense,Grounds : R & M : Day to Day : Routine,2101,JOHN MACADAM & SON (RESCUE) LTD,A0001846, 01/11/2018,OPS0291718,45.00,N,N/A,N,N/A,,
Pendle Borough Council,Operational Services,Premises Related Expense,Grounds : R & M : Day to Day : Routine,2101,JOHN MACADAM & SON (RESCUE) LTD,A0001846, 08/11/2018,OPS0291905,45.00,N,N/A,N,N/A,,
Pendle Borough Council,Operational Services,Premises Related Expense,Grounds : R & M : Day to Day : Routine,2101,JOHN MACADAM & SON (RESCUE) LTD,A0001846, 08/11/2018,OPS0291906,45.00,N,N/A,N,N/A,,
Pendle Borough Council,Housing Regeneration Services,Supplies and Services,Grant Funding,4737,NORTHERN HOUSING CONSORTIUM,A0001966, 15/11/2018,HMR0291958,49.00,N,N/A,N,N/A,,
Pendle Borough Council,Property Services,Premises Related Expense,Water & Sewerage,2501,WATER PLUS LIMITED,A0001986, 08/11/2018,EST0291812,1611.96,N,N/A,N,N/A,,
Pendle Borough Council,Property Services,Premises Related Expense,Bldgs : R & M : Day To Day,2001,F NUTTER & SONS,A0002037, 29/11/2018,EST0292196,3.78,N,N/A,N,N/A,,
Pendle Borough Council,Property Services,Premises Related Expense,Bldgs : R & M : Day To Day,2001,F NUTTER & SONS,A0002037, 29/11/2018,EST0292196,45.50,N,N/A,N,N/A,,
Pendle Borough Council,Property Services,Premises Related Expense,Bldgs : R & M : Day To Day,2001,F NUTTER & SONS,A0002037, 29/11/2018,EST0292196,61.53,N,N/A,N,N/A,,
Pendle Borough Council,Property Services,Premises Related Expense,Bldgs : R & M : Day To Day,2001,F NUTTER & SONS,A0002037, 29/11/2018,EST0292196,182.00,N,N/A,N,N/A,,
Pendle Borough Council,Parks & Recreation Services,Transport Related Expense,Tprt : Repairs : General,3105,F NUTTER & SONS,A0002037, 29/11/2018,PCO0292274,550.00,N,N/A,N,N/A,,
Pendle Borough Council,Operational Services,Indirect Employee Expenses,Emp : Training : General,1217,NORTH LANCS ROAD TRANSPORT TRAINING LTD,A0002043, 22/11/2018,OPS0292102,220.00,N,N/A,N,N/A,,
Pendle Borough Council,Operational Services,Indirect Employee Expenses,Emp : Training : General,1217,NORTH LANCS ROAD TRANSPORT TRAINING LTD,A0002043, 22/11/2018,OPS0292103,320.00,N,N/A,N,N/A,,
Pendle Borough Council,Parks & Recreation Services,Premises Related Expense,Bldgs : R & M : Day To Day,2001,OPTION HYGIENE LIMITED,A0002063, 29/11/2018,PCO0292183,100.00,N,N/A,N,N/A,,
Pendle Borough Council,Parks & Recreation Services,Premises Related Expense,Bldgs : R & M : Day To Day,2001,OPTION HYGIENE LIMITED,A0002063, 29/11/2018,PCO0292286,73.50,N,N/A,N,N/A,,
Pendle Borough Council,Parks & Recreation Services,Premises Related Expense,Grounds : R & M : Day to Day : Routine,2101,OPTION HYGIENE LIMITED,A0002063, 29/11/2018,PCO0292183,194.00,N,N/A,N,N/A,,
Pendle Borough Council,Parks & Recreation Services,Transport Related Expense,Tprt : Repairs : General,3105,OPTION HYGIENE LIMITED,A0002063, 22/11/2018,PCO0292107,20.14,N,N/A,N,N/A,,
Pendle Borough Council,Operational Services,Premises Related Expense,Bldgs : R & M : Day To Day,2001,POWER PIPES (PENDLE) LIMITED,A0002089, 01/11/2018,OPS0291705,77.28,N,N/A,N,N/A,,
Pendle Borough Council,Parks & Recreation Services,Transport Related Expense,Tprt : Repairs : General,3105,POWER PIPES (PENDLE) LIMITED,A0002089, 15/11/2018,PCO0291948,43.27,N,N/A,N,N/A,,
Pendle Borough Council,Parks & Recreation Services,Agency Staff,Emp : Basic Wages,1001,PENDLE PERSONNEL LTD,A0002198, 15/11/2018,PCO0291954,642.86,N,N/A,N,N/A,,
Pendle Borough Council,Parks & Recreation Services,Agency Staff,Emp : Basic Wages,1001,PENDLE PERSONNEL LTD,A0002198, 01/11/2018,PCO0291720,654.75,N,N/A,N,N/A,,
Pendle Borough Council,Parks & Recreation Services,Agency Staff,Emp : Basic Wages,1001,PENDLE PERSONNEL LTD,A0002198, 01/11/2018,PCO0291719,746.55,N,N/A,N,N/A,,
Pendle Borough Council,Parks & Recreation Services,Agency Staff,Emp : Agency Wages,1004,PENDLE PERSONNEL LTD,A0002198, 01/11/2018,PCO0291719,592.50,N,N/A,N,N/A,,
Pendle Borough Council,Parks & Recreation Services,Agency Staff,Emp : Agency Wages,1004,PENDLE PERSONNEL LTD,A0002198, 29/11/2018,PCO0292277,1753.80,N,N/A,N,N/A,,
Pendle Borough Council,Parks & Recreation Services,Agency Staff,Emp : Agency Wages,1004,PENDLE PERSONNEL LTD,A0002198, 22/11/2018,PCO0292093,2019.25,N,N/A,N,N/A,,
Pendle Borough Council,Parks & Recreation Services,Agency Staff,Emp : Agency Wages,1004,PENDLE PERSONNEL LTD,A0002198, 22/11/2018,PCO0292089,2042.95,N,N/A,N,N/A,,
Pendle Borough Council,Parks & Recreation Services,Agency Staff,Emp : Agency Wages,1004,PENDLE PERSONNEL LTD,A0002198, 01/11/2018,PCO0291720,3163.95,N,N/A,N,N/A,,
Pendle Borough Council,Parks & Recreation Services,Agency Staff,Emp : Agency Wages,1004,PENDLE PERSONNEL LTD,A0002198, 15/11/2018,PCO0291954,3347.62,N,N/A,N,N/A,,
Pendle Borough Council,Parks & Recreation Services,Agency Staff,Emp : Agency Wages,1004,PENDLE PERSONNEL LTD,A0002198, 01/11/2018,PCO0291719,3463.80,N,N/A,N,N/A,,
Pendle Borough Council,Parks & Recreation Services,Agency Staff,Emp : Salaries & Wages,1020,PENDLE PERSONNEL LTD,A0002198, 08/11/2018,PCO0291804,41.60,N,N/A,N,N/A,,
Pendle Borough Council,Parks & Recreation Services,Agency Staff,Emp : Salaries & Wages,1020,PENDLE PERSONNEL LTD,A0002198, 08/11/2018,PCO0291803,140.40,N,N/A,N,N/A,,
Pendle Borough Council,Parks & Recreation Services,Agency Staff,Emp : Salaries & Wages,1020,PENDLE PERSONNEL LTD,A0002198, 08/11/2018,PCO0291888,140.40,N,N/A,N,N/A,,
Pendle Borough Council,Parks & Recreation Services,Agency Staff,Emp : Salaries & Wages,1020,PENDLE PERSONNEL LTD,A0002198, 08/11/2018,PCO0291891,148.20,N,N/A,N,N/A,,
Pendle Borough Council,Parks & Recreation Services,Agency Staff,Emp : Salaries & Wages,1020,PENDLE PERSONNEL LTD,A0002198, 29/11/2018,PCO0292276,153.40,N,N/A,N,N/A,,
Pendle Borough Council,Parks & Recreation Services,Agency Staff,Emp : Salaries & Wages,1020,PENDLE PERSONNEL LTD,A0002198, 08/11/2018,PCO0291802,208.00,N,N/A,N,N/A,,
Pendle Borough Council,Parks & Recreation Services,Agency Staff,Emp : Salaries & Wages,1020,PENDLE PERSONNEL LTD,A0002198, 08/11/2018,PCO0291800,265.20,N,N/A,N,N/A,,
Pendle Borough Council,Parks & Recreation Services,Agency Staff,Emp : Salaries & Wages,1020,PENDLE PERSONNEL LTD,A0002198, 08/11/2018,PCO0291889,275.60,N,N/A,N,N/A,,
Pendle Borough Council,Parks & Recreation Services,Agency Staff,Emp : Salaries & Wages,1020,PENDLE PERSONNEL LTD,A0002198, 22/11/2018,PCO0292092,312.00,N,N/A,N,N/A,,
Pendle Borough Council,Planning & Building Control,Supplies and Services,Printing & Stationery,4301,ROYAL MAIL GROUP LIMITED,A0002281, 15/11/2018,PBC0291982,97.69,N,N/A,N,N/A,,
Pendle Borough Council,Democratic & Legal Services,Supplies and Services,Postages,4501,ROYAL MAIL GROUP LIMITED,A0002281, 29/11/2018,DAL0292209,2.90,N,N/A,N,N/A,,
Pendle Borough Council,Democratic & Legal Services,Supplies and Services,Postages,4501,ROYAL MAIL GROUP LIMITED,A0002281, 29/11/2018,DAL0292209,4.85,N,N/A,N,N/A,,
Pendle Borough Council,Democratic & Legal Services,Supplies and Services,Postages,4501,ROYAL MAIL GROUP LIMITED,A0002281, 15/11/2018,DAL0291994,120.32,N,N/A,N,N/A,,
Pendle Borough Council,Democratic & Legal Services,Supplies and Services,Postages,4501,ROYAL MAIL GROUP LIMITED,A0002281, 29/11/2018,DAL0292209,204.71,N,N/A,N,N/A,,
Pendle Borough Council,Democratic & Legal Services,Supplies and Services,Postages,4501,ROYAL MAIL GROUP LIMITED,A0002281, 15/11/2018,DAL0291994,316.40,N,N/A,N,N/A,,
Pendle Borough Council,Democratic & Legal Services,Supplies and Services,Postages,4501,ROYAL MAIL GROUP LIMITED,A0002281, 15/11/2018,DAL0291996,465.08,N,N/A,N,N/A,,
Pendle Borough Council,Democratic & Legal Services,Supplies and Services,Postages,4501,ROYAL MAIL GROUP LIMITED,A0002281, 29/11/2018,DAL0292209,0.38,N,N/A,N,N/A,,
Pendle Borough Council,Democratic & Legal Services,Supplies and Services,Postages,4501,ROYAL MAIL GROUP LIMITED,A0002281, 15/11/2018,DAL0291996,0.88,N,N/A,N,N/A,,
Pendle Borough Council,Democratic & Legal Services,Supplies and Services,Postages,4501,ROYAL MAIL GROUP LIMITED,A0002281, 15/11/2018,DAL0291996,38.76,N,N/A,N,N/A,,
Pendle Borough Council,Democratic & Legal Services,Supplies and Services,Postages,4501,ROYAL MAIL GROUP LIMITED,A0002281, 29/11/2018,DAL0292209,46.96,N,N/A,N,N/A,,
Pendle Borough Council,Democratic & Legal Services,Supplies and Services,Postages,4501,ROYAL MAIL GROUP LIMITED,A0002281, 29/11/2018,DAL0292209,8.17,N,N/A,N,N/A,,
Pendle Borough Council,Democratic & Legal Services,Supplies and Services,Postages,4501,ROYAL MAIL GROUP LIMITED,A0002281, 15/11/2018,DAL0291996,19.54,N,N/A,N,N/A,,
Pendle Borough Council,Democratic & Legal Services,Supplies and Services,Postages,4501,ROYAL MAIL GROUP LIMITED,A0002281, 15/11/2018,DAL0291996,0.56,N,N/A,N,N/A,,
Pendle Borough Council,Democratic & Legal Services,Supplies and Services,Postages,4501,ROYAL MAIL GROUP LIMITED,A0002281, 29/11/2018,DAL0292209,3.35,N,N/A,N,N/A,,
Pendle Borough Council,Democratic & Legal Services,Supplies and Services,Postages,4501,ROYAL MAIL GROUP LIMITED,A0002281, 29/11/2018,DAL0292209,3.55,N,N/A,N,N/A,,
Pendle Borough Council,Democratic & Legal Services,Supplies and Services,Postages,4501,ROYAL MAIL GROUP LIMITED,A0002281, 15/11/2018,DAL0291996,4.26,N,N/A,N,N/A,,
Pendle Borough Council,Democratic & Legal Services,Supplies and Services,Postages,4501,ROYAL MAIL GROUP LIMITED,A0002281, 29/11/2018,DAL0292210,0.55,N,N/A,N,N/A,,
Pendle Borough Council,Democratic & Legal Services,Supplies and Services,Postages,4501,ROYAL MAIL GROUP LIMITED,A0002281, 15/11/2018,DAL0291996,3.10,N,N/A,N,N/A,,
Pendle Borough Council,Democratic & Legal Services,Supplies and Services,Postages,4501,ROYAL MAIL GROUP LIMITED,A0002281, 15/11/2018,DAL0291996,35.02,N,N/A,N,N/A,,
Pendle Borough Council,Democratic & Legal Services,Supplies and Services,Postages,4501,ROYAL MAIL GROUP LIMITED,A0002281, 29/11/2018,DAL0292209,39.72,N,N/A,N,N/A,,
Pendle Borough Council,Democratic & Legal Services,Supplies and Services,Postages,4501,ROYAL MAIL GROUP LIMITED,A0002281, 15/11/2018,DAL0291996,1.15,N,N/A,N,N/A,,
Pendle Borough Council,Democratic & Legal Services,Supplies and Services,Postages,4501,ROYAL MAIL GROUP LIMITED,A0002281, 29/11/2018,DAL0292209,81.62,N,N/A,N,N/A,,
Pendle Borough Council,Democratic & Legal Services,Supplies and Services,Postages,4501,ROYAL MAIL GROUP LIMITED,A0002281, 15/11/2018,DAL0291996,195.15,N,N/A,N,N/A,,
Pendle Borough Council,Democratic & Legal Services,Supplies and Services,Postages,4501,ROYAL MAIL GROUP LIMITED,A0002281, 29/11/2018,DAL0292209,172.53,N,N/A,N,N/A,,
Pendle Borough Council,Democratic & Legal Services,Supplies and Services,Postages,4501,ROYAL MAIL GROUP LIMITED,A0002281, 15/11/2018,DAL0291996,173.42,N,N/A,N,N/A,,
Pendle Borough Council,Democratic & Legal Services,Supplies and Services,Postages,4501,ROYAL MAIL GROUP LIMITED,A0002281, 29/11/2018,DAL0292209,22.20,N,N/A,N,N/A,,
Pendle Borough Council,Democratic & Legal Services,Supplies and Services,Postages,4501,ROYAL MAIL GROUP LIMITED,A0002281, 15/11/2018,DAL0291996,74.20,N,N/A,N,N/A,,
Pendle Borough Council,Democratic & Legal Services,Supplies and Services,Postages,4501,ROYAL MAIL GROUP LIMITED,A0002281, 15/11/2018,DAL0291996,204.16,N,N/A,N,N/A,,
Pendle Borough Council,Democratic & Legal Services,Supplies and Services,Postages,4501,ROYAL MAIL GROUP LIMITED,A0002281, 29/11/2018,DAL0292209,707.78,N,N/A,N,N/A,,
Pendle Borough Council,Democratic & Legal Services,Supplies and Services,Postages,4501,ROYAL MAIL GROUP LIMITED,A0002281, 29/11/2018,DAL0292209,63.32,N,N/A,N,N/A,,
Pendle Borough Council,Democratic & Legal Services,Supplies and Services,Postages,4501,ROYAL MAIL GROUP LIMITED,A0002281, 15/11/2018,DAL0291996,97.87,N,N/A,N,N/A,,
Pendle Borough Council,Democratic & Legal Services,Supplies and Services,Other Expenses,4705,ROYAL MAIL GROUP LIMITED,A0002281, 15/11/2018,DAL0291996,11.25,N,N/A,N,N/A,,
Pendle Borough Council,Operational Services,Transport Related Expense,Tprt : Annual Hire Charge,3601,STANLEY BROTHERS (TIPPERS) LTD,A0002422, 29/11/2018,OPS0292259,2300.00,N,N/A,N,N/A,,
Pendle Borough Council,Operational Services,Transport Related Expense,Tprt : Annual Hire Charge,3601,STANLEY BROTHERS (TIPPERS) LTD,A0002422, 01/11/2018,OPS0291702,2000.00,N,N/A,N,N/A,,
Pendle Borough Council,Operational Services,Supplies and Services,Veterinary Fees,4405,STANLEY HOUSE VETERINARY GROUP,A0002423, 01/11/2018,OPS0291650,16.66,N,N/A,N,N/A,,
Pendle Borough Council,Property Services,Premises Related Expense,Grounds : R & M : Day to Day : Routine,2101,T & F STEEL DESIGNS LTD,A0002627, 15/11/2018,EST0291962,30.00,N,N/A,N,N/A,,
Pendle Borough Council,Property Services,Premises Related Expense,Grounds : R & M : Day to Day : Routine,2101,T & F STEEL DESIGNS LTD,A0002627, 15/11/2018,EST0291962,60.00,N,N/A,N,N/A,,
Pendle Borough Council,Engineering & Special Projects,Premises Related Expense,Grounds : R & M : Day to Day : Routine,2101,T & F STEEL DESIGNS LTD,A0002627, 15/11/2018,HED0292006,90.00,N,N/A,N,N/A,,
Pendle Borough Council,Engineering & Special Projects,Premises Related Expense,Grounds : R & M : Day to Day : Routine,2101,T & F STEEL DESIGNS LTD,A0002627, 15/11/2018,HED0292006,130.00,N,N/A,N,N/A,,
Pendle Borough Council,Operational Services,,Stock : Purchases,PJ01,THE HELPING HAND CO LTD,A0002655, 22/11/2018,OPS0292124,168.40,N,N/A,N,N/A,,
Pendle Borough Council,Environmental Health Services,Supplies and Services,Other Expenses,4705,JOHNSONS TEXICARE LTD,A0002665, 01/11/2018,ENV0291683,87.60,N,N/A,N,N/A,,
Pendle Borough Council,Property Services,Capital Costs,Capital : Payments,CD14,THE OLD BATHS TRADING CO,A0002697, 29/11/2018,EST0292193,2495.00,N,N/A,N,N/A,,
Pendle Borough Council,Parks & Recreation Services,Premises Related Expense,Grounds : R & M : Day to Day : Routine,2101,TRAVIS PERKINS TRADING CO LTD,A0002709, 01/11/2018,PCO0291709,17.27,N,N/A,N,N/A,,
Pendle Borough Council,Parks & Recreation Services,Premises Related Expense,Grounds : R & M : Day to Day : Routine,2101,TRAVIS PERKINS TRADING CO LTD,A0002709, 22/11/2018,PCO0292109,40.20,N,N/A,N,N/A,,
Pendle Borough Council,Parks & Recreation Services,Premises Related Expense,Grounds : R & M : Day to Day : Routine,2101,TRAVIS PERKINS TRADING CO LTD,A0002709, 15/11/2018,PCO0291947,111.00,N,N/A,N,N/A,,
Pendle Borough Council,Parks & Recreation Services,Premises Related Expense,Grounds : R & M : Day to Day : Routine,2101,TRAVIS PERKINS TRADING CO LTD,A0002709, 22/11/2018,PCO0292109,116.55,N,N/A,N,N/A,,
Pendle Borough Council,Economic Development & Tourism,Supplies and Services,Miscellaneous : Other,4707,TRAVIS PERKINS TRADING CO LTD,A0002709, 08/11/2018,REG0291637,32.48,N,N/A,N,N/A,,
Pendle Borough Council,Operational Services,Supplies and Services,Other Expenses,4705,TRISTAR PRINTERS LTD,A0002731, 08/11/2018,OPS0291874,1997.00,N,N/A,N,N/A,,
Pendle Borough Council,Democratic & Legal Services,Supplies and Services,Seminars etc All Costs,4601,REDACTED - PERSONAL DATA,A0002785, 29/11/2018,DAL0292211,5.83,N,N/A,N,N/A,,
Pendle Borough Council,Engineering & Special Projects,Premises Related Expense,Grounds : R & M : Day to Day : Routine,2101,YORKSHIRE WATER,A0002808, 15/11/2018,HED0291920,35.88,N,N/A,N,N/A,,
Pendle Borough Council,Property Services,Premises Related Expense,Water & Sewerage,2501,YORKSHIRE WATER,A0002808, 29/11/2018,EST0292204,125.53,N,N/A,N,N/A,,
Pendle Borough Council,Property Services,Premises Related Expense,Water & Sewerage,2501,YORKSHIRE WATER,A0002808, 15/11/2018,EST0291973,56.35,N,N/A,N,N/A,,
Pendle Borough Council,Property Services,Premises Related Expense,Water & Sewerage,2501,YORKSHIRE WATER,A0002808, 29/11/2018,EST0292203,42.57,N,N/A,N,N/A,,
Pendle Borough Council,Property Services,Premises Related Expense,Water & Sewerage,2501,YORKSHIRE WATER,A0002808, 22/11/2018,EST0292063,8.46,N,N/A,N,N/A,,
Pendle Borough Council,Engineering & Special Projects,Supplies and Services,Seminars etc All Costs,4601,REDACTED - PERSONAL DATA,A0004669, 29/11/2018,HED0292173,1.60,N,N/A,N,N/A,,
Pendle Borough Council,Economic Development & Tourism,Capital Costs,Capital : Payments,CD14,BUILDING BRIDGES PENDLE,A0005524, 29/11/2018,REG0292298,3000.00,N,1144741,N,N/A,,
Pendle Borough Council,Parks & Recreation Services,Transport Related Expense,Diesel Oil,3202,CERTAS ENERGY UK T/A TOWNSON BROS,A0005683, 01/11/2018,PCO0291714,2193.00,N,N/A,N,N/A,,
Pendle Borough Council,Property Services,Premises Related Expense,Bldgs : R & M : Day To Day,2001,FAST GLASS GLAZING LIMITED,A0005903, 15/11/2018,EST0291961,80.00,N,N/A,N,N/A,,
Pendle Borough Council,Property Services,Premises Related Expense,Bldgs : R & M : Day To Day,2001,FAST GLASS GLAZING LIMITED,A0005903, 15/11/2018,EST0291961,138.90,N,N/A,N,N/A,,
Pendle Borough Council,Parks & Recreation Services,Transport Related Expense,Hire of Plant,3502,F G ROWLAND LIMITED,A0006489, 22/11/2018,PCO0292091,1404.00,N,N/A,N,N/A,,
Pendle Borough Council,Democratic & Legal Services,Indirect Employee Expenses,Staff Refreshments,1261,PHILIP SANDERSON,A0006611, 08/11/2018,DAL0291777,14.84,N,N/A,N,N/A,,
Pendle Borough Council,Democratic & Legal Services,Indirect Employee Expenses,Staff Refreshments,1261,PHILIP SANDERSON,A0006611, 08/11/2018,DAL0291777,10.00,N,N/A,N,N/A,,
Pendle Borough Council,Democratic & Legal Services,Supplies and Services,Hospitality,4611,PHILIP SANDERSON,A0006611, 08/11/2018,DAL0291777,20.40,N,N/A,N,N/A,,
Pendle Borough Council,Parks & Recreation Services,Supplies and Services,Expenditure : Materials,0002,BARCHAM TREES PLC,A0007884, 01/11/2018,PCO0291710,1089.00,N,N/A,N,N/A,,
Pendle Borough Council,Property Services,Indirect Employee Expenses,Staff Refreshments,1261,VENDA VALET (MACHINES) LTD,A0009649, 08/11/2018,EST0291807,65.00,N,N/A,N,N/A,,
Pendle Borough Council,Chief Executives Policy Unit,Supplies and Services,Grant Funding,4737,POLICE & CRIME COMMISSIONER FOR LANCASHIRE,A0009816, 08/11/2018,COR0291835,8000.00,N,N/A,N,N/A,,
Pendle Borough Council,Human Resources,Transport Related Expense,Car Allows : Offs : Lease Exps,3806,PENDLE LEISURE LIMITED,A0012961, 08/11/2018,PER0291796,125.27,N,XR43029,N,N/A,,
Pendle Borough Council,Human Resources,Transport Related Expense,Car Allows : Offs : Lease Exps,3806,PENDLE LEISURE LIMITED,A0012961, 08/11/2018,PER0291796,131.59,N,XR43029,N,N/A,,
Pendle Borough Council,Human Resources,Transport Related Expense,Car Allows : Offs : Lease Exps,3806,PENDLE LEISURE LIMITED,A0012961, 08/11/2018,PER0291796,157.90,N,XR43029,N,N/A,,
Pendle Borough Council,Democratic & Legal Services,Supplies and Services,Meeting Expenses,4610,PENDLE LEISURE LIMITED,A0012961, 15/11/2018,DAL0291999,116.67,N,XR43029,N,N/A,,
Pendle Borough Council,Democratic & Legal Services,Supplies and Services,Meeting Expenses,4610,PENDLE LEISURE LIMITED,A0012961, 22/11/2018,DAL0292036,116.67,N,XR43029,N,N/A,,
Pendle Borough Council,Democratic & Legal Services,Supplies and Services,Meeting Expenses,4610,PENDLE LEISURE LIMITED,A0012961, 22/11/2018,DAL0292119,233.33,N,XR43029,N,N/A,,
Pendle Borough Council,Democratic & Legal Services,Supplies and Services,Other Expenses,4705,PENDLE LEISURE LIMITED,A0012961, 22/11/2018,DAL0292137,129.50,N,XR43029,N,N/A,,
Pendle Borough Council,Operational Services,Supplies and Services,Miscellaneous : Other,4707,PENDLE LEISURE LIMITED,A0012961, 22/11/2018,OPS0292138,26.67,N,XR43029,N,N/A,,
Pendle Borough Council,Operational Services,Supplies and Services,Miscellaneous : Other,4707,PENDLE LEISURE LIMITED,A0012961, 22/11/2018,OPS0292138,135.00,N,XR43029,N,N/A,,
Pendle Borough Council,Parks & Recreation Services,Premises Related Expense,Grounds : R & M : Day to Day : Routine,2101,LANDSCAPE ENGINEERING LTD,A0013135, 22/11/2018,PCO0292110,600.00,N,N/A,N,N/A,,
Pendle Borough Council,Operational Services,Supplies and Services,Sub-Contractors,4007,ORCHARD RECYCLING SERVICE,A0015803, 29/11/2018,OPS0292264,690.00,N,N/A,N,N/A,,
Pendle Borough Council,Operational Services,Supplies and Services,Sub-Contractors,4007,ORCHARD RECYCLING SERVICE,A0015803, 01/11/2018,OPS0291698,787.50,N,N/A,N,N/A,,
Pendle Borough Council,Operational Services,Supplies and Services,Sub-Contractors,4007,ORCHARD RECYCLING SERVICE,A0015803, 22/11/2018,OPS0292126,855.00,N,N/A,N,N/A,,
Pendle Borough Council,Operational Services,Supplies and Services,Sub-Contractors,4007,ORCHARD RECYCLING SERVICE,A0015803, 15/11/2018,OPS0291997,967.50,N,N/A,N,N/A,,
Pendle Borough Council,Operational Services,Supplies and Services,Sub-Contractors,4007,ORCHARD RECYCLING SERVICE,A0015803, 08/11/2018,OPS0291856,1080.00,N,N/A,N,N/A,,
Pendle Borough Council,Operational Services,Supplies and Services,Miscellaneous : Other,4707,ORCHARD RECYCLING SERVICE,A0015803, 01/11/2018,OPS0291698,270.25,N,N/A,N,N/A,,
Pendle Borough Council,Operational Services,Supplies and Services,Miscellaneous : Other,4707,ORCHARD RECYCLING SERVICE,A0015803, 22/11/2018,OPS0292126,354.75,N,N/A,N,N/A,,
Pendle Borough Council,Operational Services,Agency Costs,Fast Action Response,5009,ORCHARD RECYCLING SERVICE,A0015803, 01/11/2018,OPS0291698,270.25,N,N/A,N,N/A,,
Pendle Borough Council,Operational Services,Agency Costs,Fast Action Response,5009,ORCHARD RECYCLING SERVICE,A0015803, 22/11/2018,OPS0292126,354.75,N,N/A,N,N/A,,
Pendle Borough Council,Engineering & Special Projects,Supplies and Services,LCC Levy (Admins Costs),4419,JACOBS,A0016294, 22/11/2018,HED0292149,-310.00,N,N/A,N,N/A,,
Pendle Borough Council,Engineering & Special Projects,Supplies and Services,LCC Levy (Admins Costs),4419,JACOBS,A0016294, 22/11/2018,HED0292149,310.00,N,N/A,N,N/A,,
Pendle Borough Council,Parks & Recreation Services,Transport Related Expense,Tprt : Repairs : General,3105,AUTO SMART,A0016358, 22/11/2018,PCO0292133,55.10,N,N/A,N,N/A,,
Pendle Borough Council,Economic Development & Tourism,Indirect Employee Expenses,Emp : Training : General,1217,ABC AWARDS,A0017706, 22/11/2018,REG0292016,24.60,N,1086947,N,N/A,,
Pendle Borough Council,Economic Development & Tourism,Indirect Employee Expenses,Emp : Training : General,1217,ABC AWARDS,A0017706, 08/11/2018,REG0291838,46.80,N,1086947,N,N/A,,
Pendle Borough Council,Environmental Health Services,Supplies and Services,EFM : Other Equipment,4003,BRUEL & KJAER UK LIMITED,A0018030, 08/11/2018,ENV0291758,112.00,N,N/A,N,N/A,,
Pendle Borough Council,Parks & Recreation Services,Indirect Employee Expenses,Training,1211,LANCASHIRE ASSESSMENT CENTRE LTD,A0018163, 22/11/2018,PCO0292118,388.00,N,N/A,N,N/A,,
Pendle Borough Council,Economic Development & Tourism,Indirect Employee Expenses,Emp : Training : General,1217,REDACTED - PERSONAL DATA,A0021400, 22/11/2018,REG0292097,7.60,N,N/A,N,N/A,,
Pendle Borough Council,Economic Development & Tourism,Indirect Employee Expenses,Emp : Training : General,1217,REDACTED - PERSONAL DATA,A0021400, 22/11/2018,REG0292097,11.08,N,N/A,N,N/A,,
Pendle Borough Council,Economic Development & Tourism,Indirect Employee Expenses,Emp : Training : General,1217,REDACTED - PERSONAL DATA,A0021400, 22/11/2018,REG0292097,18.50,N,N/A,N,N/A,,
Pendle Borough Council,Democratic & Legal Services,Supplies and Services,Newspapers & Periodicals,4305,HOPKINSON NEWS LTD,A0022188, 22/11/2018,DAL0292154,42.15,N,N/A,N,N/A,,
Pendle Borough Council,Democratic & Legal Services,Supplies and Services,Newspapers & Periodicals,4305,HOPKINSON NEWS LTD,A0022188, 22/11/2018,DAL0292154,9.50,N,N/A,N,N/A,,
Pendle Borough Council,Democratic & Legal Services,Supplies and Services,Newspapers & Periodicals,4305,HOPKINSON NEWS LTD,A0022188, 22/11/2018,DAL0292154,1.50,N,N/A,N,N/A,,
Pendle Borough Council,Democratic & Legal Services,Supplies and Services,Newspapers & Periodicals,4305,HOPKINSON NEWS LTD,A0022188, 22/11/2018,DAL0292154,15.75,N,N/A,N,N/A,,
Pendle Borough Council,Engineering & Special Projects,Premises Related Expense,Grounds : R & M : Day to Day : Routine,2101,E.ON,A0023073, 15/11/2018,HED0292003,149.77,N,N/A,N,N/A,,
Pendle Borough Council,Engineering & Special Projects,Premises Related Expense,Grounds : R & M : Day to Day : Routine,2101,E.ON,A0023073, 29/11/2018,HED0292176,413.62,N,N/A,N,N/A,,
Pendle Borough Council,Chief Executives Policy Unit,Premises Related Expense,Gas,2202,E.ON,A0023073, 29/11/2018,COR0292189,-56.96,N,N/A,N,N/A,,
Pendle Borough Council,Chief Executives Policy Unit,Premises Related Expense,Gas,2202,E.ON,A0023073, 29/11/2018,COR0292189,26.36,N,N/A,N,N/A,,
Pendle Borough Council,Chief Executives Policy Unit,Premises Related Expense,Gas,2202,E.ON,A0023073, 29/11/2018,COR0292189,49.49,N,N/A,N,N/A,,
Pendle Borough Council,Chief Executives Policy Unit,Premises Related Expense,Gas,2202,E.ON,A0023073, 29/11/2018,COR0292189,90.08,N,N/A,N,N/A,,
Pendle Borough Council,Financial Services,Premises Related Expense,Electricity,2203,E.ON,A0023073, 01/11/2018,AAS4005960,-22.59,N,N/A,N,N/A,,
Pendle Borough Council,Financial Services,Premises Related Expense,Electricity,2203,E.ON,A0023073, 01/11/2018,AAS0291676,0.23,N,N/A,N,N/A,,
Pendle Borough Council,Financial Services,Premises Related Expense,Electricity,2203,E.ON,A0023073, 01/11/2018,AAS0291677,1.08,N,N/A,N,N/A,,
Pendle Borough Council,Financial Services,Premises Related Expense,Electricity,2203,E.ON,A0023073, 01/11/2018,AAS0291679,8.67,N,N/A,N,N/A,,
Pendle Borough Council,Financial Services,Premises Related Expense,Electricity,2203,E.ON,A0023073, 01/11/2018,AAS0291678,9.86,N,N/A,N,N/A,,
Pendle Borough Council,Financial Services,Premises Related Expense,Electricity,2203,E.ON,A0023073, 01/11/2018,AAS0291675,11.88,N,N/A,N,N/A,,
Pendle Borough Council,Property Services,Premises Related Expense,Electricity,2203,E.ON,A0023073, 22/11/2018,EST0292067,0.27,N,N/A,N,N/A,,
Pendle Borough Council,Property Services,Premises Related Expense,Electricity,2203,E.ON,A0023073, 22/11/2018,EST0292065,0.89,N,N/A,N,N/A,,
Pendle Borough Council,Democratic & Legal Services,Premises Related Expense,Rents,2301,E.ON,A0023073, 22/11/2018,DAL0292034,24.30,N,N/A,N,N/A,,
Pendle Borough Council,Parks & Recreation Services,Transport Related Expense,Tprt : Repairs : General,3105,RIPON FARM SERVICES,A0025562, 22/11/2018,PCO0292105,16.22,N,N/A,N,N/A,,
Pendle Borough Council,Parks & Recreation Services,Transport Related Expense,Tprt : Repairs : General,3105,RIPON FARM SERVICES,A0025562, 22/11/2018,PCO0292106,314.02,N,N/A,N,N/A,,
Pendle Borough Council,Parks & Recreation Services,Transport Related Expense,Tprt : Repairs : General,3105,RIPON FARM SERVICES,A0025562, 22/11/2018,PCO0292090,671.38,N,N/A,N,N/A,,
Pendle Borough Council,Environmental Health Services,Supplies and Services,Other Expenses,4705,GRADKO INTERNATIONAL LTD,A0025806, 15/11/2018,ENV0292015,183.00,N,N/A,N,N/A,,
Pendle Borough Council,Operational Services,Indirect Employee Expenses,Training,1211,SPECIALIST TRAINING & CONSULTANCY SERVICES LTD,A0026831, 22/11/2018,OPS0292121,5.00,N,N/A,N,N/A,,
Pendle Borough Council,Operational Services,Indirect Employee Expenses,Training,1211,SPECIALIST TRAINING & CONSULTANCY SERVICES LTD,A0026831, 22/11/2018,OPS0292121,119.00,N,N/A,N,N/A,,
Pendle Borough Council,Operational Services,Indirect Employee Expenses,Training,1211,SPECIALIST TRAINING & CONSULTANCY SERVICES LTD,A0026831, 22/11/2018,OPS0292130,227.50,N,N/A,N,N/A,,
Pendle Borough Council,Operational Services,Indirect Employee Expenses,Training,1211,SPECIALIST TRAINING & CONSULTANCY SERVICES LTD,A0026831, 22/11/2018,OPS0292130,654.50,N,N/A,N,N/A,,
Pendle Borough Council,Operational Services,Indirect Employee Expenses,Training,1211,SPECIALIST TRAINING & CONSULTANCY SERVICES LTD,A0026831, 22/11/2018,OPS0292130,654.50,N,N/A,N,N/A,,
Pendle Borough Council,Parks & Recreation Services,Supplies and Services,Telephones : Direct,4502,BRITISH TELECOMMUNICATIONS PLC,A0040001, 29/11/2018,PCO0292179,0.34,N,N/A,N,N/A,,
Pendle Borough Council,Parks & Recreation Services,Supplies and Services,Telephones : Direct,4502,BRITISH TELECOMMUNICATIONS PLC,A0040001, 29/11/2018,PCO0292182,4.00,N,N/A,N,N/A,,
Pendle Borough Council,Parks & Recreation Services,Supplies and Services,Telephones : Direct,4502,BRITISH TELECOMMUNICATIONS PLC,A0040001, 29/11/2018,PCO0292179,35.97,N,N/A,N,N/A,,
Pendle Borough Council,Parks & Recreation Services,Supplies and Services,Telephones : Direct,4502,BRITISH TELECOMMUNICATIONS PLC,A0040001, 15/11/2018,PCO0291953,113.70,N,N/A,N,N/A,,
Pendle Borough Council,Parks & Recreation Services,Supplies and Services,Telephones : Direct,4502,BRITISH TELECOMMUNICATIONS PLC,A0040001, 29/11/2018,PCO0292182,413.93,N,N/A,N,N/A,,
Pendle Borough Council,Financial Services,Supplies and Services,EFM : Photocopiers,4001,CANON (UK) LIMITED,A0040400, 29/11/2018,AAS0292313,68.83,N,N/A,N,N/A,,
Pendle Borough Council,Financial Services,Supplies and Services,EFM : Photocopiers,4001,CANON (UK) LIMITED,A0040400, 29/11/2018,AAS0292313,96.36,N,N/A,N,N/A,,
Pendle Borough Council,Financial Services,Supplies and Services,EFM : Photocopiers,4001,CANON (UK) LIMITED,A0040400, 29/11/2018,AAS0292313,27.53,N,N/A,N,N/A,,
Pendle Borough Council,Financial Services,Supplies and Services,EFM : Photocopiers,4001,CANON (UK) LIMITED,A0040400, 29/11/2018,AAS0292313,82.59,N,N/A,N,N/A,,
Pendle Borough Council,Democratic & Legal Services,Supplies and Services,EFM : Photocopiers,4001,CANON (UK) LIMITED,A0040400, 29/11/2018,DAL0292258,137.90,N,N/A,N,N/A,,
Pendle Borough Council,Democratic & Legal Services,Supplies and Services,EFM : Photocopiers,4001,CANON (UK) LIMITED,A0040400, 29/11/2018,DAL0292258,113.88,N,N/A,N,N/A,,
Pendle Borough Council,Democratic & Legal Services,Supplies and Services,EFM : Photocopiers,4001,CANON (UK) LIMITED,A0040400, 29/11/2018,DAL0292258,3.31,N,N/A,N,N/A,,
Pendle Borough Council,Democratic & Legal Services,Supplies and Services,EFM : Photocopiers,4001,CANON (UK) LIMITED,A0040400, 29/11/2018,DAL0292258,29.19,N,N/A,N,N/A,,
Pendle Borough Council,Democratic & Legal Services,Supplies and Services,EFM : Photocopiers,4001,CANON (UK) LIMITED,A0040400, 29/11/2018,DAL0292258,41.29,N,N/A,N,N/A,,
Pendle Borough Council,Operational Services,Supplies and Services,EFM : Photocopiers,4001,CANON (UK) LIMITED,A0040400, 29/11/2018,OPS0292268,605.94,N,N/A,N,N/A,,
Pendle Borough Council,Housing Regeneration Services,Supplies and Services,EFM : Photocopiers,4001,CANON (UK) LIMITED,A0040400, 22/11/2018,HMR0292084,116.05,N,N/A,N,N/A,,
Pendle Borough Council,Housing Regeneration Services,Supplies and Services,EFM : Photocopiers,4001,CANON (UK) LIMITED,A0040400, 22/11/2018,HMR0292084,58.03,N,N/A,N,N/A,,
Pendle Borough Council,Housing Regeneration Services,Supplies and Services,EFM : Photocopiers,4001,CANON (UK) LIMITED,A0040400, 22/11/2018,HMR0292082,60.83,N,N/A,N,N/A,,
Pendle Borough Council,Housing Regeneration Services,Supplies and Services,EFM : Photocopiers,4001,CANON (UK) LIMITED,A0040400, 29/11/2018,HMR0292293,54.01,N,N/A,N,N/A,,
Pendle Borough Council,Housing Regeneration Services,Supplies and Services,EFM : Photocopiers,4001,CANON (UK) LIMITED,A0040400, 22/11/2018,HMR0292082,60.84,N,N/A,N,N/A,,
Pendle Borough Council,Housing Regeneration Services,Supplies and Services,EFM : Photocopiers,4001,CANON (UK) LIMITED,A0040400, 22/11/2018,HMR0292083,131.01,N,N/A,N,N/A,,
Pendle Borough Council,Engineering & Special Projects,Supplies and Services,EFM : Photocopiers,4001,CANON (UK) LIMITED,A0040400, 22/11/2018,HED0292087,161.28,N,N/A,N,N/A,,
Pendle Borough Council,Engineering & Special Projects,Supplies and Services,EFM : Photocopiers,4001,CANON (UK) LIMITED,A0040400, 22/11/2018,HED0292088,235.90,N,N/A,N,N/A,,
Pendle Borough Council,Operational Services,Supplies and Services,EFM : Photocopiers,4001,CANON (UK) LIMITED,A0040400, 29/11/2018,OPS0292267,240.29,N,N/A,N,N/A,,
Pendle Borough Council,Engineering & Special Projects,Supplies and Services,EFM : Photocopiers,4001,CANON (UK) LIMITED,A0040400, 22/11/2018,HED0292087,40.00,N,N/A,N,N/A,,
Pendle Borough Council,Planning & Building Control,Supplies and Services,EFM : Other Equipment,4003,CANON (UK) LIMITED,A0040400, 29/11/2018,PBC0292289,63.32,N,N/A,N,N/A,,
Pendle Borough Council,Directorate,Supplies and Services,Printing & Stationery,4301,CANON (UK) LIMITED,A0040400, 29/11/2018,MAN0292168,133.77,N,N/A,N,N/A,,
Pendle Borough Council,Planning & Building Control,Supplies and Services,Printing & Stationery,4301,CANON (UK) LIMITED,A0040400, 29/11/2018,PBC0292177,349.45,N,N/A,N,N/A,,
Pendle Borough Council,Directorate,Supplies and Services,Seminars etc All Costs,4601,SOLACE GROUP LIMITED,A0040401, 29/11/2018,MAN0292169,525.00,N,N/A,N,N/A,,
Pendle Borough Council,Directorate,Supplies and Services,Subscriptions & Donations,4706,SOLACE GROUP LIMITED,A0040401, 22/11/2018,MAN0292039,250.00,N,N/A,N,N/A,,
Pendle Borough Council,Property Services,Premises Related Expense,Bldgs : R & M : Day To Day,2001,PENNINE FIRE & SAFETY LTD,A0040931, 29/11/2018,EST0292192,26.30,N,N/A,N,N/A,,
Pendle Borough Council,Property Services,Premises Related Expense,Bldgs : R & M : Day To Day,2001,PENNINE FIRE & SAFETY LTD,A0040931, 29/11/2018,EST0292192,9.60,N,N/A,N,N/A,,
Pendle Borough Council,Property Services,Premises Related Expense,Bldgs : R & M : Day To Day,2001,PENNINE FIRE & SAFETY LTD,A0040931, 29/11/2018,EST0292192,6.40,N,N/A,N,N/A,,
Pendle Borough Council,Property Services,Premises Related Expense,Bldgs : R & M : Day To Day,2001,PENNINE FIRE & SAFETY LTD,A0040931, 29/11/2018,EST0292192,20.60,N,N/A,N,N/A,,
Pendle Borough Council,Property Services,Premises Related Expense,Bldgs : R & M : Day To Day,2001,PENNINE FIRE & SAFETY LTD,A0040931, 29/11/2018,EST0292192,26.30,N,N/A,N,N/A,,
Pendle Borough Council,Property Services,Premises Related Expense,Bldgs : R & M : Day To Day,2001,PENNINE FIRE & SAFETY LTD,A0040931, 29/11/2018,EST0292192,3.20,N,N/A,N,N/A,,
Pendle Borough Council,Property Services,Premises Related Expense,Bldgs : R & M : Day To Day,2001,PENNINE FIRE & SAFETY LTD,A0040931, 29/11/2018,EST0292192,23.90,N,N/A,N,N/A,,
Pendle Borough Council,Property Services,Premises Related Expense,Bldgs : R & M : Day To Day,2001,PENNINE FIRE & SAFETY LTD,A0040931, 29/11/2018,EST0292192,16.70,N,N/A,N,N/A,,
Pendle Borough Council,Property Services,Premises Related Expense,Bldgs : R & M : Day To Day,2001,PENNINE FIRE & SAFETY LTD,A0040931, 29/11/2018,EST0292192,20.60,N,N/A,N,N/A,,
Pendle Borough Council,Property Services,Premises Related Expense,Bldgs : R & M : Day To Day,2001,PENNINE FIRE & SAFETY LTD,A0040931, 29/11/2018,EST0292192,14.90,N,N/A,N,N/A,,
Pendle Borough Council,Property Services,Premises Related Expense,Bldgs : R & M : Day To Day,2001,PENNINE FIRE & SAFETY LTD,A0040931, 29/11/2018,EST0292192,3.90,N,N/A,N,N/A,,
Pendle Borough Council,Property Services,Premises Related Expense,Bldgs : R & M : Day To Day,2001,PENNINE FIRE & SAFETY LTD,A0040931, 29/11/2018,EST0292192,6.40,N,N/A,N,N/A,,
Pendle Borough Council,Property Services,Premises Related Expense,Bldgs : R & M : Day To Day,2001,PENNINE FIRE & SAFETY LTD,A0040931, 29/11/2018,EST0292192,7.10,N,N/A,N,N/A,,
Pendle Borough Council,Property Services,Premises Related Expense,Bldgs : R & M : Day To Day,2001,PENNINE FIRE & SAFETY LTD,A0040931, 29/11/2018,EST0292192,9.60,N,N/A,N,N/A,,
Pendle Borough Council,Property Services,Premises Related Expense,Bldgs : R & M : Day To Day,2001,PENNINE FIRE & SAFETY LTD,A0040931, 29/11/2018,EST0292192,7.10,N,N/A,N,N/A,,
Pendle Borough Council,Property Services,Premises Related Expense,Bldgs : R & M : Day To Day,2001,PENNINE FIRE & SAFETY LTD,A0040931, 29/11/2018,EST0292192,53.40,N,N/A,N,N/A,,
Pendle Borough Council,Property Services,Premises Related Expense,Bldgs : R & M : Day To Day,2001,PENNINE FIRE & SAFETY LTD,A0040931, 29/11/2018,EST0292192,6.40,N,N/A,N,N/A,,
Pendle Borough Council,Property Services,Premises Related Expense,Bldgs : R & M : Day To Day,2001,PENNINE FIRE & SAFETY LTD,A0040931, 29/11/2018,EST0292192,16.70,N,N/A,N,N/A,,
Pendle Borough Council,Property Services,Premises Related Expense,Bldgs : R & M : Day To Day,2001,PENNINE FIRE & SAFETY LTD,A0040931, 29/11/2018,EST0292192,3.20,N,N/A,N,N/A,,
Pendle Borough Council,Property Services,Premises Related Expense,Bldgs : R & M : Day To Day,2001,PENNINE FIRE & SAFETY LTD,A0040931, 29/11/2018,EST0292192,16.00,N,N/A,N,N/A,,
Pendle Borough Council,Property Services,Premises Related Expense,Bldgs : R & M : Day To Day,2001,PENNINE FIRE & SAFETY LTD,A0040931, 29/11/2018,EST0292192,9.60,N,N/A,N,N/A,,
Pendle Borough Council,Property Services,Premises Related Expense,Bldgs : R & M : Day To Day,2001,PENNINE FIRE & SAFETY LTD,A0040931, 29/11/2018,EST0292192,19.20,N,N/A,N,N/A,,
Pendle Borough Council,Property Services,Premises Related Expense,Bldgs : R & M : Day To Day,2001,PENNINE FIRE & SAFETY LTD,A0040931, 29/11/2018,EST0292192,75.00,N,N/A,N,N/A,,
Pendle Borough Council,Property Services,Premises Related Expense,Bldgs : R & M : Day To Day,2001,PENNINE FIRE & SAFETY LTD,A0040931, 29/11/2018,EST0292192,38.40,N,N/A,N,N/A,,
Pendle Borough Council,Property Services,Premises Related Expense,Bldgs : R & M : Day To Day,2001,PENNINE FIRE & SAFETY LTD,A0040931, 29/11/2018,EST0292192,32.00,N,N/A,N,N/A,,
Pendle Borough Council,Democratic & Legal Services,Supplies and Services,Printing & Stationery,4301,ELECTORAL REFORM SERVICES,A0041321, 15/11/2018,DAL0291995,306.28,N,N/A,N,N/A,,
Pendle Borough Council,Democratic & Legal Services,Supplies and Services,Postages,4501,ELECTORAL REFORM SERVICES,A0041321, 15/11/2018,DAL0291995,403.00,N,N/A,N,N/A,,
Pendle Borough Council,Democratic & Legal Services,Supplies and Services,Miscellaneous : Other,4707,ELECTORAL REFORM SERVICES,A0041321, 22/11/2018,DAL0292033,1727.00,N,N/A,N,N/A,,
Pendle Borough Council,Chief Executives Policy Unit,Transport Related Expense,Car Allows : Offs : Casual,3802,REDACTED - PERSONAL DATA,A0041689, 15/11/2018,COR0291914,1.33,N,N/A,N,N/A,,
Pendle Borough Council,Chief Executives Policy Unit,Transport Related Expense,Car Allows : Offs : Casual,3802,REDACTED - PERSONAL DATA,A0041689, 15/11/2018,COR0291914,1.60,N,N/A,N,N/A,,
Pendle Borough Council,Chief Executives Policy Unit,Supplies and Services,Subscriptions & Donations,4706,COUNCIL FOR VOLUNTARY SERVICE,A0042503, 08/11/2018,COR0291726,5000.00,N,1062446,N,N/A,,
Pendle Borough Council,Parks & Recreation Services,Premises Related Expense,Grounds : R & M : Day to Day : Routine,2101,C & R WALNE ENGRAVERS,A0042734, 15/11/2018,PCO0291941,32.00,N,N/A,N,N/A,,
Pendle Borough Council,Operational Services,,Stock : Purchases,PJ01,PMC POLYTHENE LIMITED,A0043215, 01/11/2018,OPS0291703,800.00,N,N/A,N,N/A,,
Pendle Borough Council,Operational Services,,Stock : Purchases,PJ01,PMC POLYTHENE LIMITED,A0043215, 29/11/2018,OPS0292262,800.00,N,N/A,N,N/A,,
Pendle Borough Council,Economic Development & Tourism,Supplies and Services,Miscellaneous : Other,4707,ROBERTSHAWS GARDEN MACHINERY LTD,A0043296, 08/11/2018,REG0291640,244.60,N,N/A,N,N/A,,
Pendle Borough Council,Parks & Recreation Services,Supplies and Services,Expenditure : Materials,0002,GREENVALE PRODUCTS LIMITED,A0043407, 08/11/2018,PCO0291887,125.00,N,N/A,N,N/A,,
Pendle Borough Council,Property Services,Premises Related Expense,Bldgs : R & M : Day To Day,2001,ASKEW REFRIGERATION SERVICES LTD,A0043524, 08/11/2018,EST0291781,133.62,N,N/A,N,N/A,,
Pendle Borough Council,Property Services,Capital Costs,Capital : Payments,CD14,ASKEW REFRIGERATION SERVICES LTD,A0043524, 15/11/2018,EST0291960,1968.58,N,N/A,N,N/A,,
Pendle Borough Council,Housing Regeneration Services,Capital Costs,Capital : Payments,CD14,MORGOED ESTATES LIMITED,A0043862, 15/11/2018,HMR0291956,13.59,N,N/A,N,N/A,,
Pendle Borough Council,Parks & Recreation Services,Transport Related Expense,Tprt : Repairs : General,3105,M J RUSHTON,A0043864, 15/11/2018,PCO0291933,165.00,N,N/A,N,N/A,,
Pendle Borough Council,Operational Services,Supplies and Services,Sub-Contractors,4007,S M SHEPHERD BUILDING CONTRACTORS,A0044037, 08/11/2018,OPS0291863,80.00,N,N/A,N,N/A,,
Pendle Borough Council,Operational Services,Supplies and Services,Sub-Contractors,4007,S M SHEPHERD BUILDING CONTRACTORS,A0044037, 08/11/2018,OPS0291863,80.00,N,N/A,N,N/A,,
Pendle Borough Council,Property Services,Premises Related Expense,Electricity,2203,E.ON UK PLC,A0044040, 29/11/2018,EST0292197,3.59,N,N/A,N,N/A,,
Pendle Borough Council,Property Services,Premises Related Expense,Electricity,2203,E.ON UK PLC,A0044040, 15/11/2018,EST0291972,361.97,N,N/A,N,N/A,,
Pendle Borough Council,Operational Services,Transport Related Expense,Tprt : Repairs : General,3105,GO PLANT LIMITED,A0045105, 08/11/2018,OPS0291879,26.58,N,N/A,N,N/A,,
Pendle Borough Council,Operational Services,Transport Related Expense,Tprt : Repairs : General,3105,GO PLANT LIMITED,A0045105, 08/11/2018,OPS0291882,150.25,N,N/A,N,N/A,,
Pendle Borough Council,Operational Services,Transport Related Expense,Tprt : Repairs : General,3105,GO PLANT LIMITED,A0045105, 29/11/2018,OPS0292263,170.18,N,N/A,N,N/A,,
Pendle Borough Council,Operational Services,Transport Related Expense,Tprt : Repairs : General,3105,GO PLANT LIMITED,A0045105, 15/11/2018,OPS0291926,240.50,N,N/A,N,N/A,,
Pendle Borough Council,Operational Services,Transport Related Expense,Tprt : Repairs : General,3105,GO PLANT LIMITED,A0045105, 15/11/2018,OPS0291925,395.47,N,N/A,N,N/A,,
Pendle Borough Council,Operational Services,Transport Related Expense,Tprt : Repairs : General,3105,GO PLANT LIMITED,A0045105, 08/11/2018,OPS0291890,482.49,N,N/A,N,N/A,,
Pendle Borough Council,Operational Services,Transport Related Expense,Tprt : Repairs : General,3105,GO PLANT LIMITED,A0045105, 08/11/2018,OPS0291881,75.27,N,N/A,N,N/A,,
Pendle Borough Council,Operational Services,Transport Related Expense,Tprt : Repairs : General,3105,GO PLANT LIMITED,A0045105, 15/11/2018,OPS4005965,-62.00,N,N/A,N,N/A,,
Pendle Borough Council,Operational Services,Transport Related Expense,Tprt : Repairs : General,3105,GO PLANT LIMITED,A0045105, 15/11/2018,OPS0292009,62.00,N,N/A,N,N/A,,
Pendle Borough Council,Operational Services,Transport Related Expense,Tprt : Repairs : General,3105,GO PLANT LIMITED,A0045105, 08/11/2018,OPS0291876,448.00,N,N/A,N,N/A,,
Pendle Borough Council,Operational Services,Transport Related Expense,Tprt : Repairs : General,3105,GO PLANT LIMITED,A0045105, 15/11/2018,OPS0291923,656.37,N,N/A,N,N/A,,
Pendle Borough Council,Operational Services,Transport Related Expense,Tprt : Repairs : General,3105,GO PLANT LIMITED,A0045105, 15/11/2018,OPS0291929,764.46,N,N/A,N,N/A,,
Pendle Borough Council,Operational Services,Transport Related Expense,Tprt : Repairs : General,3105,GO PLANT LIMITED,A0045105, 15/11/2018,OPS0291928,1170.29,N,N/A,N,N/A,,
Pendle Borough Council,Operational Services,Transport Related Expense,Tprt : Repairs : General,3105,GO PLANT LIMITED,A0045105, 15/11/2018,OPS0291917,466.18,N,N/A,N,N/A,,
Pendle Borough Council,Operational Services,Transport Related Expense,Tyres,3204,GO PLANT LIMITED,A0045105, 15/11/2018,OPS4005964,-52.80,N,N/A,N,N/A,,
Pendle Borough Council,Operational Services,Transport Related Expense,Tyres,3204,GO PLANT LIMITED,A0045105, 15/11/2018,OPS0292004,33.30,N,N/A,N,N/A,,
Pendle Borough Council,Operational Services,Transport Related Expense,Tyres,3204,GO PLANT LIMITED,A0045105, 15/11/2018,OPS0292005,52.80,N,N/A,N,N/A,,
Pendle Borough Council,Operational Services,Transport Related Expense,Tyres,3204,GO PLANT LIMITED,A0045105, 15/11/2018,OPS0292005,88.50,N,N/A,N,N/A,,
Pendle Borough Council,Operational Services,Transport Related Expense,Tyres,3204,GO PLANT LIMITED,A0045105, 08/11/2018,OPS0291885,102.30,N,N/A,N,N/A,,
Pendle Borough Council,Operational Services,Transport Related Expense,Tyres,3204,GO PLANT LIMITED,A0045105, 15/11/2018,OPS0291918,102.30,N,N/A,N,N/A,,
Pendle Borough Council,Operational Services,Transport Related Expense,Tyres,3204,GO PLANT LIMITED,A0045105, 08/11/2018,OPS0291898,110.30,N,N/A,N,N/A,,
Pendle Borough Council,Operational Services,Transport Related Expense,Tyres,3204,GO PLANT LIMITED,A0045105, 08/11/2018,OPS0291894,156.30,N,N/A,N,N/A,,
Pendle Borough Council,Operational Services,Transport Related Expense,Tyres,3204,GO PLANT LIMITED,A0045105, 08/11/2018,OPS0291893,181.60,N,N/A,N,N/A,,
Pendle Borough Council,Operational Services,Transport Related Expense,Tyres,3204,GO PLANT LIMITED,A0045105, 15/11/2018,OPS0291922,137.90,N,N/A,N,N/A,,
Pendle Borough Council,Operational Services,Transport Related Expense,Tyres,3204,GO PLANT LIMITED,A0045105, 08/11/2018,OPS0291896,829.42,N,N/A,N,N/A,,
Pendle Borough Council,Operational Services,Transport Related Expense,Tyres,3204,GO PLANT LIMITED,A0045105, 15/11/2018,OPS0291916,88.50,N,N/A,N,N/A,,
Pendle Borough Council,Operational Services,Transport Related Expense,Tyres,3204,GO PLANT LIMITED,A0045105, 08/11/2018,OPS0291897,103.40,N,N/A,N,N/A,,
Pendle Borough Council,Housing Regeneration Services,Transport Related Expense,Tprt : Pooled Transport,3401,GO PLANT LIMITED,A0045105, 08/11/2018,HMR0291866,72.40,N,N/A,N,N/A,,
Pendle Borough Council,Operational Services,Transport Related Expense,Tprt : Annual Hire Charge,3601,GO PLANT LIMITED,A0045105, 29/11/2018,OPS0292265,100.00,N,N/A,N,N/A,,
Pendle Borough Council,Operational Services,Transport Related Expense,Tprt : Annual Hire Charge,3601,GO PLANT LIMITED,A0045105, 29/11/2018,OPS0292260,560.00,N,N/A,N,N/A,,
Pendle Borough Council,Operational Services,Transport Related Expense,Tprt : Annual Hire Charge,3601,GO PLANT LIMITED,A0045105, 15/11/2018,OPS0291927,667.00,N,N/A,N,N/A,,
Pendle Borough Council,Operational Services,Transport Related Expense,Tprt : Annual Hire Charge,3601,GO PLANT LIMITED,A0045105, 08/11/2018,OPS0291884,2250.00,N,N/A,N,N/A,,
Pendle Borough Council,Operational Services,Transport Related Expense,Tprt : Annual Hire Charge,3601,GO PLANT LIMITED,A0045105, 08/11/2018,OPS0291883,3000.00,N,N/A,N,N/A,,
Pendle Borough Council,Operational Services,Transport Related Expense,Tprt : Annual Hire Charge,3601,GO PLANT LIMITED,A0045105, 15/11/2018,OPS0291924,3000.00,N,N/A,N,N/A,,
Pendle Borough Council,Operational Services,Transport Related Expense,Tprt : Annual Hire Charge,3601,GO PLANT LIMITED,A0045105, 08/11/2018,OPS0291875,3750.00,N,N/A,N,N/A,,
Pendle Borough Council,Operational Services,Transport Related Expense,Tprt : Annual Hire Charge,3601,GO PLANT LIMITED,A0045105, 08/11/2018,OPS0291878,3750.00,N,N/A,N,N/A,,
Pendle Borough Council,Parks & Recreation Services,Transport Related Expense,Tprt : Annual Hire Charge,3601,GO PLANT LIMITED,A0045105, 15/11/2018,PCO0291949,308.00,N,N/A,N,N/A,,
Pendle Borough Council,Operational Services,Transport Related Expense,Tprt : Annual Hire Charge,3601,GO PLANT LIMITED,A0045105, 29/11/2018,OPS0292278,64924.65,N,N/A,N,N/A,,
Pendle Borough Council,Democratic & Legal Services,Supplies and Services,Reference Books Acts,4304,HAMMICKS LEGAL INFORMATION SERVICES,A0045271, 01/11/2018,DAL0291687,368.00,N,N/A,N,N/A,,
Pendle Borough Council,Financial Services,Premises Related Expense,Bldgs : R & M : Day To Day,2001,PLUSNET TECHNOLOGIES LIMITED,A0045646, 01/11/2018,AAS0292045,15.00,N,N/A,N,N/A,,
Pendle Borough Council,Financial Services,Supplies and Services,Computer Charges,4509,PLUSNET TECHNOLOGIES LIMITED,A0045646, 05/11/2018,AAS0292044,12.49,N,N/A,N,N/A,,
Pendle Borough Council,Financial Services,Indirect Employee Expenses,Emp : Practising Certificates,1201,BARCLAYCARD COMMERCIAL,A0045954, 15/11/2018,AAS0292028,368.00,N,N/A,N,N/A,,
Pendle Borough Council,Financial Services,Indirect Employee Expenses,Emp : Practising Certificates,1201,BARCLAYCARD COMMERCIAL,A0045954, 15/11/2018,AAS0292028,368.00,N,N/A,N,N/A,,
Pendle Borough Council,Financial Services,Support Services,Bank Charges,7201,BARCLAYCARD COMMERCIAL,A0045954, 15/11/2018,AAS0292028,-18.49,N,N/A,N,N/A,,
Pendle Borough Council,Financial Services,Support Services,Bank Charges,7201,BARCLAYCARD COMMERCIAL,A0045954, 15/11/2018,AAS0292028,26.63,N,N/A,N,N/A,,
Pendle Borough Council,Engineering & Special Projects,Premises Related Expense,Grounds : R & M : Day to Day : Routine,2101,REDACTED - PERSONAL DATA,A0046430, 29/11/2018,HED0292288,2.66,N,N/A,N,N/A,,
Pendle Borough Council,Planning & Building Control,,Other Income : Non-VATable,9303,REDACTED - PERSONAL DATA,A0046462, 08/11/2018,PBC0291695,174.36,N,N/A,N,N/A,,
Pendle Borough Council,Property Services,Supplies and Services,Publicity & advertisement,4704,LOOP PUBLISHING LTD,A0047429, 01/11/2018,EST0291663,100.00,N,N/A,N,N/A,,
Pendle Borough Council,Property Services,Supplies and Services,Publicity & advertisement,4704,LOOP PUBLISHING LTD,A0047429, 01/11/2018,EST0291663,100.00,N,N/A,N,N/A,,
Pendle Borough Council,Engineering & Special Projects,Supplies and Services,Seminars etc All Costs,4601,REDACTED - PERSONAL DATA,A0047792, 29/11/2018,HED0292174,0.83,N,N/A,N,N/A,,
Pendle Borough Council,Economic Development & Tourism,Supplies and Services,Seminars etc All Costs,4601,REDACTED - PERSONAL DATA,A0047792, 29/11/2018,REG0292297,4.20,N,N/A,N,N/A,,
Pendle Borough Council,Engineering & Special Projects,Supplies and Services,Seminars etc All Costs,4601,REDACTED - PERSONAL DATA,A0047792, 29/11/2018,HED0292174,8.45,N,N/A,N,N/A,,
Pendle Borough Council,Economic Development & Tourism,Capital Costs,Capital : Payments,CD14,24 HR RECRUITMENT,A0049647, 01/11/2018,REG0291697,2083.27,N,N/A,N,N/A,,
Pendle Borough Council,Planning & Building Control,Supplies and Services,EFM : Other Equipment,4003,VIP SYSTEM LIMITED,A0050529, 15/11/2018,PBC0291993,73.18,N,N/A,N,N/A,,
Pendle Borough Council,Planning & Building Control,Supplies and Services,EFM : Other Equipment,4003,VIP SYSTEM LIMITED,A0050529, 15/11/2018,PBC0291993,253.66,N,N/A,N,N/A,,
Pendle Borough Council,Planning & Building Control,Supplies and Services,EFM : Other Equipment,4003,VIP SYSTEM LIMITED,A0050529, 15/11/2018,PBC0291993,469.68,N,N/A,N,N/A,,
Pendle Borough Council,Planning & Building Control,Supplies and Services,EFM : Other Equipment,4003,VIP SYSTEM LIMITED,A0050529, 15/11/2018,PBC0291993,73.19,N,N/A,N,N/A,,
Pendle Borough Council,Planning & Building Control,Supplies and Services,EFM : Other Equipment,4003,VIP SYSTEM LIMITED,A0050529, 15/11/2018,PBC0291993,240.86,N,N/A,N,N/A,,
Pendle Borough Council,Planning & Building Control,Supplies and Services,EFM : Other Equipment,4003,VIP SYSTEM LIMITED,A0050529, 15/11/2018,PBC0291993,253.66,N,N/A,N,N/A,,
Pendle Borough Council,Parks & Recreation Services,Premises Related Expense,Grounds : R & M : Day to Day : Routine,2101,BUTLER SHEETMETAL LIMITED,A0050988, 15/11/2018,PCO0291943,130.00,N,N/A,N,N/A,,
Pendle Borough Council,Parks & Recreation Services,Transport Related Expense,Tprt : Repairs : General,3105,ROSSENDALE VULCANISING (SALES LTD),A0051239, 15/11/2018,PCO0291931,12.00,N,N/A,N,N/A,,
Pendle Borough Council,Parks & Recreation Services,Transport Related Expense,Tprt : Repairs : General,3105,ROSSENDALE VULCANISING (SALES LTD),A0051239, 15/11/2018,PCO0291931,12.00,N,N/A,N,N/A,,
Pendle Borough Council,Parks & Recreation Services,Transport Related Expense,Tprt : Repairs : General,3105,ROSSENDALE VULCANISING (SALES LTD),A0051239, 15/11/2018,PCO0291931,12.00,N,N/A,N,N/A,,
Pendle Borough Council,Parks & Recreation Services,Transport Related Expense,Tyres,3204,ROSSENDALE VULCANISING (SALES LTD),A0051239, 15/11/2018,PCO0291932,157.00,N,N/A,N,N/A,,
Pendle Borough Council,Parks & Recreation Services,Transport Related Expense,Tyres,3204,ROSSENDALE VULCANISING (SALES LTD),A0051239, 15/11/2018,PCO0291932,360.00,N,N/A,N,N/A,,
Pendle Borough Council,Housing Regeneration Services,Premises Related Expense,Premises Cleaning,2601,ROACH CLEANING & MAINTENANCE SERVICES LTD,A0051553, 29/11/2018,HMR0292165,40.00,N,N/A,N,N/A,,
Pendle Borough Council,Financial Services,Premises Related Expense,Rents,2301,LIBERATA UK LTD,A0051618, 08/11/2018,AAS0291829,1792.19,N,N/A,N,N/A,,
Pendle Borough Council,Financial Services,Agency Costs,Liberata,5301,LIBERATA UK LTD,A0051618, 01/11/2018,AAS0291673,587.00,N,N/A,N,N/A,,
Pendle Borough Council,Financial Services,Agency Costs,Liberata,5301,LIBERATA UK LTD,A0051618, 29/11/2018,AAS0292308,1516.34,N,N/A,N,N/A,,
Pendle Borough Council,Financial Services,Agency Costs,Liberata,5301,LIBERATA UK LTD,A0051618, 29/11/2018,AAS0292309,4471.78,N,N/A,N,N/A,,
Pendle Borough Council,Financial Services,Agency Costs,Liberata,5301,LIBERATA UK LTD,A0051618, 29/11/2018,AAS0292307,5519.25,N,N/A,N,N/A,,
Pendle Borough Council,Financial Services,Agency Costs,Liberata,5303,LIBERATA UK LTD,A0051618, 15/11/2018,AAS0292042,6666.67,N,N/A,N,N/A,,
Pendle Borough Council,Financial Services,Agency Costs,Liberata,5303,LIBERATA UK LTD,A0051618, 15/11/2018,AAS0292042,34032.48,N,N/A,N,N/A,,
Pendle Borough Council,Financial Services,Agency Costs,Liberata,5303,LIBERATA UK LTD,A0051618, 15/11/2018,AAS0292042,26546.85,N,N/A,N,N/A,,
Pendle Borough Council,Financial Services,Agency Costs,Liberata,5303,LIBERATA UK LTD,A0051618, 15/11/2018,AAS0292042,80322.47,N,N/A,N,N/A,,
Pendle Borough Council,Financial Services,Agency Costs,Liberata,5303,LIBERATA UK LTD,A0051618, 15/11/2018,AAS0292042,53683.50,N,N/A,N,N/A,,
Pendle Borough Council,Financial Services,Agency Costs,Liberata,5303,LIBERATA UK LTD,A0051618, 15/11/2018,AAS0292042,79310.37,N,N/A,N,N/A,,
Pendle Borough Council,Financial Services,Agency Costs,Liberata,5303,LIBERATA UK LTD,A0051618, 15/11/2018,AAS0292042,120490.99,N,N/A,N,N/A,,
Pendle Borough Council,Financial Services,Capital Costs,Capital : Salaries,CD13,LIBERATA UK LTD,A0051618, 29/11/2018,AAS0292310,11.93,N,N/A,N,N/A,,
Pendle Borough Council,Financial Services,Capital Costs,Capital : Salaries,CD13,LIBERATA UK LTD,A0051618, 29/11/2018,AAS0292310,507.90,N,N/A,N,N/A,,
Pendle Borough Council,Financial Services,Capital Costs,Capital : Payments,CD14,LIBERATA UK LTD,A0051618, 01/11/2018,AAS0291674,25000.00,N,N/A,N,N/A,,
Pendle Borough Council,Financial Services,Premises Related Expense,Electricity,2203,SOUTHERN ELECTRIC,A0051726, 08/11/2018,AAS0291834,125.19,N,N/A,N,N/A,,
Pendle Borough Council,Human Resources,Supplies and Services,Other Expenses,4705,FIDELITI LIMITED,A0052058, 15/11/2018,PER0291980,19.08,N,N/A,N,N/A,,
Pendle Borough Council,Parks & Recreation Services,Premises Related Expense,Bldgs : R & M : Day To Day,2001,ALERT FIRE AND SECURITY LIMITED,A0052065, 08/11/2018,PCO0291795,119.40,N,N/A,N,N/A,,
Pendle Borough Council,Parks & Recreation Services,Premises Related Expense,Grounds : R & M : Day to Day : Routine,2101,ALERT FIRE AND SECURITY LIMITED,A0052065, 15/11/2018,PCO0291952,113.00,N,N/A,N,N/A,,
Pendle Borough Council,Parks & Recreation Services,Premises Related Expense,Grounds : R & M : Day to Day : Routine,2101,C B PRICE & SONS BUILDERS,A0052117, 01/11/2018,PCO0291717,2000.00,N,N/A,N,N/A,,
Pendle Borough Council,Democratic & Legal Services,Supplies and Services,Mobile Phones,4508,O2 (UK) LIMITED,A0053660, 15/11/2018,DAL0291998,-6.91,N,N/A,N,N/A,,
Pendle Borough Council,Democratic & Legal Services,Supplies and Services,Mobile Phones,4508,O2 (UK) LIMITED,A0053660, 15/11/2018,DAL0291998,10.00,N,N/A,N,N/A,,
Pendle Borough Council,Property Services,Premises Related Expense,Bldgs : R & M : Day To Day,2001,MONKS CONTRACTORS LIMITED,A0053900, 22/11/2018,EST0292072,530.00,N,N/A,N,N/A,,
Pendle Borough Council,Democratic & Legal Services,Transport Related Expense,Car Allows : Offs : Casual,3802,REDACTED - PERSONAL DATA,A0054205, 22/11/2018,DAL0292140,69.00,N,N/A,N,N/A,,
Pendle Borough Council,Property Services,Indirect Employee Expenses,Staff Refreshments,1261,SIEMENS FINANCIAL SERVICES LIMITED,A0054268, 22/11/2018,EST0292069,390.00,N,N/A,N,N/A,,
Pendle Borough Council,Property Services,Indirect Employee Expenses,Staff Refreshments,1261,SIEMENS FINANCIAL SERVICES LIMITED,A0054268, 29/11/2018,EST0292205,415.00,N,N/A,N,N/A,,
Pendle Borough Council,Planning & Building Control,Supplies and Services,Seminars etc All Costs,4601,REDACTED - PERSONAL DATA,A0054626, 01/11/2018,PBC0291689,17.50,N,N/A,N,N/A,,
Pendle Borough Council,Financial Services,Supplies and Services,Seminars etc All Costs,4601,L G FUTURES LIMITED,A0056113, 08/11/2018,AAS0291830,4000.00,N,N/A,N,N/A,,
Pendle Borough Council,Parks & Recreation Services,Transport Related Expense,Tprt : Repairs : General,3105,HYDRAIR,A0056976, 15/11/2018,PCO0291937,63.81,N,N/A,N,N/A,,
Pendle Borough Council,Parks & Recreation Services,Transport Related Expense,Tprt : Repairs : General,3105,HYDRAIR,A0056976, 15/11/2018,PCO0291937,131.20,N,N/A,N,N/A,,
Pendle Borough Council,Financial Services,Premises Related Expense,Electricity,2203,BRITISH GAS BUSINESS,A0057202, 15/11/2018,AAS0292027,48.82,N,N/A,N,N/A,,
Pendle Borough Council,Operational Services,Supplies and Services,Printing & Stationery,4301,BOLSOVER DISTRICT COUNCIL,A0057455, 08/11/2018,OPS0291880,13.75,N,N/A,N,N/A,,
Pendle Borough Council,Operational Services,Supplies and Services,Printing & Stationery,4301,BOLSOVER DISTRICT COUNCIL,A0057455, 08/11/2018,OPS0291880,44.50,N,N/A,N,N/A,,
Pendle Borough Council,Human Resources,Supplies and Services,Seminars etc All Costs,4601,REDACTED - PERSONAL DATA,A0057968, 08/11/2018,PER0291799,200.00,N,N/A,N,N/A,,
Pendle Borough Council,Engineering & Special Projects,Supplies and Services,Tests & Inspection Fees,4409,REDACTED - PERSONAL DATA,A0058486, 08/11/2018,HED0291761,2.08,N,N/A,N,N/A,,
Pendle Borough Council,Engineering & Special Projects,Agency Costs,Lancashire C C,5102,NSL LIMITED,A0059256, 08/11/2018,HED0291842,1725.30,N,N/A,N,N/A,,
Pendle Borough Council,Democratic & Legal Services,Supplies and Services,Adverts : Statutory Notice,4702,JOHNSTON PUBLISHING LIMITED,A0059640, 08/11/2018,DAL0291738,243.00,N,N/A,N,N/A,,
Pendle Borough Council,Democratic & Legal Services,Supplies and Services,Adverts : Statutory Notice,4702,JOHNSTON PUBLISHING LIMITED,A0059640, 01/11/2018,DAL0291647,297.00,N,N/A,N,N/A,,
Pendle Borough Council,Democratic & Legal Services,Supplies and Services,Adverts : Statutory Notice,4702,JOHNSTON PUBLISHING LIMITED,A0059640, 15/11/2018,DAL0291913,297.00,N,N/A,N,N/A,,
Pendle Borough Council,Democratic & Legal Services,,Fees Income : Non-VATable,9302,JOHNSTON PUBLISHING LIMITED,A0059640, 01/11/2018,DAL0291645,270.00,N,N/A,N,N/A,,
Pendle Borough Council,Property Services,Premises Related Expense,Bldgs : R & M : Day To Day,2001,MAXIGIENE ENVIRONMENTAL SERVICES LTD,A0060911, 08/11/2018,EST0291814,25.00,N,N/A,N,N/A,,
Pendle Borough Council,Property Services,Premises Related Expense,Bldgs : R & M : Day To Day,2001,MAXIGIENE ENVIRONMENTAL SERVICES LTD,A0060911, 29/11/2018,EST0292208,75.00,N,N/A,N,N/A,,
Pendle Borough Council,Property Services,Premises Related Expense,Bldgs : R & M : Day To Day,2001,MAXIGIENE ENVIRONMENTAL SERVICES LTD,A0060911, 29/11/2018,EST0292195,175.00,N,N/A,N,N/A,,
Pendle Borough Council,Property Services,Supplies and Services,Other Expenses,4705,MAXIGIENE ENVIRONMENTAL SERVICES LTD,A0060911, 08/11/2018,EST0291816,817.50,N,N/A,N,N/A,,
Pendle Borough Council,Property Services,Supplies and Services,Other Expenses,4705,MAXIGIENE ENVIRONMENTAL SERVICES LTD,A0060911, 29/11/2018,EST0292207,2452.50,N,N/A,N,N/A,,
Pendle Borough Council,Operational Services,Supplies and Services,EFM Materials,4004,CONTAINER CARE SOLUTIONS LIMITED,A0061112, 22/11/2018,OPS0292128,20.00,N,N/A,N,N/A,,
Pendle Borough Council,Operational Services,Supplies and Services,EFM Materials,4004,CONTAINER CARE SOLUTIONS LIMITED,A0061112, 22/11/2018,OPS0292128,58.00,N,N/A,N,N/A,,
Pendle Borough Council,Operational Services,Supplies and Services,EFM Materials,4004,CONTAINER CARE SOLUTIONS LIMITED,A0061112, 22/11/2018,OPS0292128,87.00,N,N/A,N,N/A,,
Pendle Borough Council,Operational Services,Supplies and Services,EFM Materials,4004,CONTAINER CARE SOLUTIONS LIMITED,A0061112, 22/11/2018,OPS0292128,120.00,N,N/A,N,N/A,,
Pendle Borough Council,Operational Services,Supplies and Services,EFM Materials,4004,CONTAINER CARE SOLUTIONS LIMITED,A0061112, 22/11/2018,OPS0292128,170.00,N,N/A,N,N/A,,
Pendle Borough Council,Operational Services,Supplies and Services,EFM Materials,4004,CONTAINER CARE SOLUTIONS LIMITED,A0061112, 22/11/2018,OPS0292128,320.00,N,N/A,N,N/A,,
Pendle Borough Council,Operational Services,Supplies and Services,EFM Materials,4004,CONTAINER CARE SOLUTIONS LIMITED,A0061112, 22/11/2018,OPS0292128,340.00,N,N/A,N,N/A,,
Pendle Borough Council,Operational Services,Supplies and Services,EFM Materials,4004,CONTAINER CARE SOLUTIONS LIMITED,A0061112, 22/11/2018,OPS0292128,340.00,N,N/A,N,N/A,,
Pendle Borough Council,Operational Services,Supplies and Services,EFM Materials,4004,CONTAINER CARE SOLUTIONS LIMITED,A0061112, 22/11/2018,OPS0292128,360.00,N,N/A,N,N/A,,
Pendle Borough Council,Operational Services,Supplies and Services,EFM Materials,4004,CONTAINER CARE SOLUTIONS LIMITED,A0061112, 22/11/2018,OPS0292128,456.00,N,N/A,N,N/A,,
Pendle Borough Council,Operational Services,Supplies and Services,EFM Materials,4004,CONTAINER CARE SOLUTIONS LIMITED,A0061112, 01/11/2018,OPS0291700,595.00,N,N/A,N,N/A,,
Pendle Borough Council,Financial Services,Transport Related Expense,Tprt : Annual Hire Charge,3601,ARVAL LTD (ALLSTAR FUEL SERVICES),A0062668, 15/11/2018,AAS0292162,126.70,N,N/A,N,N/A,,
Pendle Borough Council,Financial Services,Transport Related Expense,Tprt : Annual Hire Charge,3601,ARVAL LTD (ALLSTAR FUEL SERVICES),A0062668, 15/11/2018,AAS0292162,126.70,N,N/A,N,N/A,,
Pendle Borough Council,Financial Services,Transport Related Expense,Tprt : Annual Hire Charge,3601,ARVAL LTD (ALLSTAR FUEL SERVICES),A0062668, 15/11/2018,AAS0292162,126.70,N,N/A,N,N/A,,
Pendle Borough Council,Financial Services,Transport Related Expense,Tprt : Annual Hire Charge,3601,ARVAL LTD (ALLSTAR FUEL SERVICES),A0062668, 15/11/2018,AAS0292162,126.70,N,N/A,N,N/A,,
Pendle Borough Council,Financial Services,Transport Related Expense,Tprt : Annual Hire Charge,3601,ARVAL LTD (ALLSTAR FUEL SERVICES),A0062668, 15/11/2018,AAS0292163,198.19,N,N/A,N,N/A,,
Pendle Borough Council,Financial Services,Transport Related Expense,Tprt : Annual Hire Charge,3601,ARVAL LTD (ALLSTAR FUEL SERVICES),A0062668, 15/11/2018,AAS0292163,201.83,N,N/A,N,N/A,,
Pendle Borough Council,Financial Services,Transport Related Expense,Tprt : Annual Hire Charge,3601,ARVAL LTD (ALLSTAR FUEL SERVICES),A0062668, 15/11/2018,AAS0292162,126.70,N,N/A,N,N/A,,
Pendle Borough Council,Democratic & Legal Services,Transport Related Expense,Tprt : Repairs : General,3105,REDACTED - PERSONAL DATA,A0062864, 08/11/2018,DAL0291779,3.75,N,N/A,N,N/A,,
Pendle Borough Council,Democratic & Legal Services,Transport Related Expense,Tprt : Repairs : General,3105,REDACTED - PERSONAL DATA,A0062864, 01/11/2018,DAL0291686,5.00,N,N/A,N,N/A,,
Pendle Borough Council,Democratic & Legal Services,Transport Related Expense,Tprt : Repairs : General,3105,REDACTED - PERSONAL DATA,A0062864, 29/11/2018,DAL0292213,5.00,N,N/A,N,N/A,,
Pendle Borough Council,Democratic & Legal Services,Transport Related Expense,Tprt : Repairs : General,3105,REDACTED - PERSONAL DATA,A0062864, 08/11/2018,DAL0291779,15.00,N,N/A,N,N/A,,
Pendle Borough Council,Democratic & Legal Services,Supplies and Services,Uniforms,4202,REDACTED - PERSONAL DATA,A0062864, 22/11/2018,DAL0292081,6.70,N,N/A,N,N/A,,
Pendle Borough Council,Democratic & Legal Services,Supplies and Services,Uniforms,4202,REDACTED - PERSONAL DATA,A0062864, 08/11/2018,DAL0291779,12.00,N,N/A,N,N/A,,
Pendle Borough Council,Democratic & Legal Services,Supplies and Services,Mayoral Expenses,4614,REDACTED - PERSONAL DATA,A0062864, 22/11/2018,DAL0292081,5.00,N,N/A,N,N/A,,
Pendle Borough Council,Democratic & Legal Services,Supplies and Services,Mayoral Expenses,4614,REDACTED - PERSONAL DATA,A0062864, 15/11/2018,DAL0292002,12.10,N,N/A,N,N/A,,
Pendle Borough Council,Democratic & Legal Services,Supplies and Services,Mayoral Expenses,4614,REDACTED - PERSONAL DATA,A0062864, 08/11/2018,DAL0291779,12.83,N,N/A,N,N/A,,
Pendle Borough Council,Democratic & Legal Services,Supplies and Services,Mayoral Expenses,4614,REDACTED - PERSONAL DATA,A0062864, 01/11/2018,DAL0291686,23.30,N,N/A,N,N/A,,
Pendle Borough Council,Property Services,Premises Related Expense,Electricity,2203,SCOTTISH POWER,A0063942, 29/11/2018,EST0292202,7.39,N,N/A,N,N/A,,
Pendle Borough Council,Democratic & Legal Services,Supplies and Services,Publicity & advertisement,4704,LANCASHIRE BROADCASTING CO LTD,A0064934, 08/11/2018,DAL0291794,150.00,N,N/A,N,N/A,,
Pendle Borough Council,Human Resources,Transport Related Expense,Car Allows : Offs : Lease Exps,3806,ARNOLD CLARK VEHICLE MANAGEMENT,A0065524, 08/11/2018,PER0291793,2035.80,N,N/A,N,N/A,,
Pendle Borough Council,Human Resources,Transport Related Expense,Car Allows : Offs : Lease Exps,3806,ARNOLD CLARK VEHICLE MANAGEMENT,A0065524, 08/11/2018,PER0291793,2120.11,N,N/A,N,N/A,,
Pendle Borough Council,Democratic & Legal Services,Supplies and Services,Mobile Phones,4508,NELSON TOWN COUNCIL,A0065647, 15/11/2018,DAL0292000,6.91,N,N/A,N,N/A,,
Pendle Borough Council,Human Resources,Transport Related Expense,Car Allows : Offs : Lease Exps,3806,LEX AUTOLEASE LIMITED,A0066530, 08/11/2018,PER0291788,3805.02,N,N/A,N,N/A,,
Pendle Borough Council,Human Resources,Transport Related Expense,Car Allows : Offs : Lease Exps,3806,LEX AUTOLEASE LIMITED,A0066530, 08/11/2018,PER0291788,4001.83,N,N/A,N,N/A,,
Pendle Borough Council,Human Resources,Transport Related Expense,Car Allows : Offs : Lease Exps,3806,LEX AUTOLEASE LIMITED,A0066530, 08/11/2018,PER4005962,-256.86,N,N/A,N,N/A,,
Pendle Borough Council,Human Resources,Transport Related Expense,Car Allows : Offs : Lease Exps,3806,LEX AUTOLEASE LIMITED,A0066530, 08/11/2018,PER4005962,-157.90,N,N/A,N,N/A,,
Pendle Borough Council,Human Resources,Transport Related Expense,Car Allows : Offs : Lease Exps,3806,LEX AUTOLEASE LIMITED,A0066530, 08/11/2018,PER0291787,49.76,N,N/A,N,N/A,,
Pendle Borough Council,Human Resources,Transport Related Expense,Car Allows : Offs : Lease Exps,3806,LEX AUTOLEASE LIMITED,A0066530, 08/11/2018,PER0291787,53.57,N,N/A,N,N/A,,
Pendle Borough Council,Property Services,Capital Costs,Capital : Payments,CD14,SPEAKMAN CONTRACTORS LTD,A0066581, 08/11/2018,EST0291783,5540.00,N,N/A,N,N/A,,
Pendle Borough Council,Planning & Building Control,Supplies and Services,EFM : Office and computer equipment,4002,BACK CARE SOLUTIONS LIMITED,A0067155, 08/11/2018,PBC0291736,250.00,N,N/A,N,N/A,,
Pendle Borough Council,Planning & Building Control,Supplies and Services,Planning Appeals,4415,BACK CARE SOLUTIONS LIMITED,A0067155, 08/11/2018,PBC0291736,511.00,N,N/A,N,N/A,,
Pendle Borough Council,Engineering & Special Projects,Supplies and Services,LCC Levy (Admins Costs),4419,PATROL,A0067663, 15/11/2018,HED0291919,34.55,N,N/A,N,N/A,,
Pendle Borough Council,Operational Services,Supplies and Services,EFM : Office and computer equipment,4002,LIMPET LABELS UK LIMITED,A0067671, 01/11/2018,OPS0291704,196.61,N,N/A,N,N/A,,
Pendle Borough Council,Operational Services,Transport Related Expense,Tprt : Repairs : General,3105,PROBRUSH T/A NORTHERN MUNICIPAL SPARES LTD,A0068263, 22/11/2018,OPS0292144,171.51,N,N/A,N,N/A,,
Pendle Borough Council,Operational Services,Transport Related Expense,Tprt : Repairs : General,3105,PROBRUSH T/A NORTHERN MUNICIPAL SPARES LTD,A0068263, 22/11/2018,OPS0292144,171.51,N,N/A,N,N/A,,
Pendle Borough Council,Operational Services,Transport Related Expense,Tprt : Repairs : General,3105,PROBRUSH T/A NORTHERN MUNICIPAL SPARES LTD,A0068263, 22/11/2018,OPS0292144,171.52,N,N/A,N,N/A,,
Pendle Borough Council,Operational Services,Transport Related Expense,Tprt : Repairs : General,3105,PROBRUSH T/A NORTHERN MUNICIPAL SPARES LTD,A0068263, 22/11/2018,OPS0292144,171.52,N,N/A,N,N/A,,
Pendle Borough Council,Operational Services,Transport Related Expense,Tprt : Repairs : General,3105,PROBRUSH T/A NORTHERN MUNICIPAL SPARES LTD,A0068263, 22/11/2018,OPS0292144,171.51,N,N/A,N,N/A,,
Pendle Borough Council,Operational Services,Transport Related Expense,Tprt : Repairs : General,3105,PROBRUSH T/A NORTHERN MUNICIPAL SPARES LTD,A0068263, 22/11/2018,OPS0292144,171.51,N,N/A,N,N/A,,
Pendle Borough Council,Engineering & Special Projects,Supplies and Services,LCC Levy (Admins Costs),4424,CHIPSIDE LTD,A0068587, 08/11/2018,HED0291839,12.31,N,N/A,N,N/A,,
Pendle Borough Council,Engineering & Special Projects,Supplies and Services,LCC Levy (Admins Costs),4424,CHIPSIDE LTD,A0068587, 08/11/2018,HED0291840,310.38,N,N/A,N,N/A,,
Pendle Borough Council,Parks & Recreation Services,Supplies and Services,Expenditure : Materials,0002,M C & M A STEWART HAULAGE,A0068863, 22/11/2018,PCO0292111,421.74,N,N/A,N,N/A,,
Pendle Borough Council,Parks & Recreation Services,Supplies and Services,Expenditure : Materials,0002,M C & M A STEWART HAULAGE,A0068863, 22/11/2018,PCO0292112,1220.68,N,N/A,N,N/A,,
Pendle Borough Council,Parks & Recreation Services,Premises Related Expense,Grounds : R & M : Day to Day : Routine,2101,M C & M A STEWART HAULAGE,A0068863, 15/11/2018,PCO0291939,308.00,N,N/A,N,N/A,,
Pendle Borough Council,Parks & Recreation Services,Premises Related Expense,Grounds : R & M : Day to Day : Routine,2101,M C & M A STEWART HAULAGE,A0068863, 22/11/2018,PCO0292112,604.00,N,N/A,N,N/A,,
Pendle Borough Council,Financial Services,Premises Related Expense,Electricity,2203,BRITISH GAS BUSINESS,A0069538, 29/11/2018,AAS0292227,28.38,N,N/A,N,N/A,,
Pendle Borough Council,Financial Services,Premises Related Expense,Electricity,2203,BRITISH GAS BUSINESS,A0069538, 29/11/2018,AAS0292228,70.55,N,N/A,N,N/A,,
Pendle Borough Council,Financial Services,Premises Related Expense,Electricity,2203,BRITISH GAS BUSINESS,A0069538, 27/11/2018,AAS0292300,8.77,N,N/A,N,N/A,,
Pendle Borough Council,Financial Services,Premises Related Expense,Electricity,2203,BRITISH GAS BUSINESS,A0069538, 29/11/2018,AAS0292250,65.16,N,N/A,N,N/A,,
Pendle Borough Council,Financial Services,Premises Related Expense,Electricity,2203,BRITISH GAS BUSINESS,A0069538, 29/11/2018,AAS0292221,412.23,N,N/A,N,N/A,,
Pendle Borough Council,Financial Services,Premises Related Expense,Electricity,2203,BRITISH GAS BUSINESS,A0069538, 29/11/2018,AAS0292239,33.04,N,N/A,N,N/A,,
Pendle Borough Council,Financial Services,Premises Related Expense,Electricity,2203,BRITISH GAS BUSINESS,A0069538, 29/11/2018,AAS0292234,113.58,N,N/A,N,N/A,,
Pendle Borough Council,Financial Services,Premises Related Expense,Electricity,2203,BRITISH GAS BUSINESS,A0069538, 29/11/2018,AAS0292252,115.43,N,N/A,N,N/A,,
Pendle Borough Council,Financial Services,Premises Related Expense,Electricity,2203,BRITISH GAS BUSINESS,A0069538, 06/11/2018,AAS4005967,-88.57,N,N/A,N,N/A,,
Pendle Borough Council,Financial Services,Premises Related Expense,Electricity,2203,BRITISH GAS BUSINESS,A0069538, 29/11/2018,AAS0292251,19.31,N,N/A,N,N/A,,
Pendle Borough Council,Financial Services,Premises Related Expense,Electricity,2203,BRITISH GAS BUSINESS,A0069538, 06/11/2018,AAS0292049,50.97,N,N/A,N,N/A,,
Pendle Borough Council,Financial Services,Premises Related Expense,Electricity,2203,BRITISH GAS BUSINESS,A0069538, 06/11/2018,AAS0292050,88.57,N,N/A,N,N/A,,
Pendle Borough Council,Financial Services,Premises Related Expense,Electricity,2203,BRITISH GAS BUSINESS,A0069538, 27/11/2018,AAS0292323,153.63,N,N/A,N,N/A,,
Pendle Borough Council,Financial Services,Premises Related Expense,Electricity,2203,BRITISH GAS BUSINESS,A0069538, 29/11/2018,AAS0292223,25.69,N,N/A,N,N/A,,
Pendle Borough Council,Financial Services,Premises Related Expense,Electricity,2203,BRITISH GAS BUSINESS,A0069538, 29/11/2018,AAS0292224,39.10,N,N/A,N,N/A,,
Pendle Borough Council,Financial Services,Premises Related Expense,Electricity,2203,BRITISH GAS BUSINESS,A0069538, 29/11/2018,AAS0292237,10.94,N,N/A,N,N/A,,
Pendle Borough Council,Financial Services,Premises Related Expense,Electricity,2203,BRITISH GAS BUSINESS,A0069538, 06/11/2018,AAS0292048,57.80,N,N/A,N,N/A,,
Pendle Borough Council,Financial Services,Premises Related Expense,Electricity,2203,BRITISH GAS BUSINESS,A0069538, 29/11/2018,AAS0292245,7.30,N,N/A,N,N/A,,
Pendle Borough Council,Financial Services,Premises Related Expense,Electricity,2203,BRITISH GAS BUSINESS,A0069538, 29/11/2018,AAS4005971,-143.09,N,N/A,N,N/A,,
Pendle Borough Council,Financial Services,Premises Related Expense,Electricity,2203,BRITISH GAS BUSINESS,A0069538, 29/11/2018,AAS0292218,137.09,N,N/A,N,N/A,,
Pendle Borough Council,Financial Services,Premises Related Expense,Electricity,2203,BRITISH GAS BUSINESS,A0069538, 29/11/2018,AAS0292219,147.33,N,N/A,N,N/A,,
Pendle Borough Council,Financial Services,Premises Related Expense,Electricity,2203,BRITISH GAS BUSINESS,A0069538, 29/11/2018,AAS0292231,207.23,N,N/A,N,N/A,,
Pendle Borough Council,Financial Services,Premises Related Expense,Electricity,2203,BRITISH GAS BUSINESS,A0069538, 29/11/2018,AAS4005972,-24.95,N,N/A,N,N/A,,
Pendle Borough Council,Financial Services,Premises Related Expense,Electricity,2203,BRITISH GAS BUSINESS,A0069538, 29/11/2018,AAS0292229,18.23,N,N/A,N,N/A,,
Pendle Borough Council,Financial Services,Premises Related Expense,Electricity,2203,BRITISH GAS BUSINESS,A0069538, 29/11/2018,AAS0292230,33.76,N,N/A,N,N/A,,
Pendle Borough Council,Financial Services,Premises Related Expense,Electricity,2203,BRITISH GAS BUSINESS,A0069538, 29/11/2018,AAS0292217,11.47,N,N/A,N,N/A,,
Pendle Borough Council,Financial Services,Premises Related Expense,Electricity,2203,BRITISH GAS BUSINESS,A0069538, 29/11/2018,AAS0292226,109.53,N,N/A,N,N/A,,
Pendle Borough Council,Financial Services,Premises Related Expense,Electricity,2203,BRITISH GAS BUSINESS,A0069538, 29/11/2018,AAS0292216,10.98,N,N/A,N,N/A,,
Pendle Borough Council,Financial Services,Premises Related Expense,Electricity,2203,BRITISH GAS BUSINESS,A0069538, 29/11/2018,AAS0292247,11.65,N,N/A,N,N/A,,
Pendle Borough Council,Financial Services,Premises Related Expense,Electricity,2203,BRITISH GAS BUSINESS,A0069538, 29/11/2018,AAS0292238,22.99,N,N/A,N,N/A,,
Pendle Borough Council,Financial Services,Premises Related Expense,Electricity,2203,BRITISH GAS BUSINESS,A0069538, 29/11/2018,AAS0292242,19.86,N,N/A,N,N/A,,
Pendle Borough Council,Financial Services,Premises Related Expense,Electricity,2203,BRITISH GAS BUSINESS,A0069538, 29/11/2018,AAS0292241,68.10,N,N/A,N,N/A,,
Pendle Borough Council,Financial Services,Premises Related Expense,Electricity,2203,BRITISH GAS BUSINESS,A0069538, 29/11/2018,AAS0292220,209.79,N,N/A,N,N/A,,
Pendle Borough Council,Financial Services,Premises Related Expense,Electricity,2203,BRITISH GAS BUSINESS,A0069538, 29/11/2018,AAS0292244,7.60,N,N/A,N,N/A,,
Pendle Borough Council,Financial Services,Premises Related Expense,Electricity,2203,BRITISH GAS BUSINESS,A0069538, 29/11/2018,AAS0292232,133.08,N,N/A,N,N/A,,
Pendle Borough Council,Financial Services,Premises Related Expense,Electricity,2203,BRITISH GAS BUSINESS,A0069538, 29/11/2018,AAS0292233,235.91,N,N/A,N,N/A,,
Pendle Borough Council,Financial Services,Premises Related Expense,Electricity,2203,BRITISH GAS BUSINESS,A0069538, 29/11/2018,AAS0292235,8.22,N,N/A,N,N/A,,
Pendle Borough Council,Financial Services,Premises Related Expense,Electricity,2203,BRITISH GAS BUSINESS,A0069538, 29/11/2018,AAS0292222,47.26,N,N/A,N,N/A,,
Pendle Borough Council,Financial Services,Premises Related Expense,Electricity,2203,BRITISH GAS BUSINESS,A0069538, 29/11/2018,AAS0292246,9.57,N,N/A,N,N/A,,
Pendle Borough Council,Financial Services,Premises Related Expense,Electricity,2203,BRITISH GAS BUSINESS,A0069538, 29/11/2018,AAS0292240,12.02,N,N/A,N,N/A,,
Pendle Borough Council,Financial Services,Premises Related Expense,Electricity,2203,BRITISH GAS BUSINESS,A0069538, 29/11/2018,AAS0292243,16.86,N,N/A,N,N/A,,
Pendle Borough Council,Financial Services,Premises Related Expense,Electricity,2203,BRITISH GAS BUSINESS,A0069538, 29/11/2018,AAS0292249,465.84,N,N/A,N,N/A,,
Pendle Borough Council,Financial Services,Premises Related Expense,Electricity,2203,BRITISH GAS BUSINESS,A0069538, 29/11/2018,AAS0292248,320.35,N,N/A,N,N/A,,
Pendle Borough Council,Financial Services,Supplies and Services,Other Expenses,4705,BRITISH GAS BUSINESS,A0069538, 29/11/2018,AAS0292236,7.97,N,N/A,N,N/A,,
Pendle Borough Council,Financial Services,Supplies and Services,Other Expenses,4705,BRITISH GAS BUSINESS,A0069538, 29/11/2018,AAS0292225,37.82,N,N/A,N,N/A,,
Pendle Borough Council,Planning & Building Control,Supplies and Services,EFM : Other Equipment,4003,HARRIS SCREEN PRINT LIMITED,A0069763, 29/11/2018,PBC0292290,295.00,N,N/A,N,N/A,,
Pendle Borough Council,Planning & Building Control,Supplies and Services,EFM : Other Equipment,4003,ID MANAGEMENT SYSTEMS,A0069768, 15/11/2018,PBC0292011,7.95,N,N/A,N,N/A,,
Pendle Borough Council,Planning & Building Control,Supplies and Services,EFM : Other Equipment,4003,ID MANAGEMENT SYSTEMS,A0069768, 15/11/2018,PBC0292011,191.40,N,N/A,N,N/A,,
Pendle Borough Council,Engineering & Special Projects,Supplies and Services,Seminars etc All Costs,4601,REDACTED - PERSONAL DATA,A0069967, 29/11/2018,HED0292175,1.08,N,N/A,N,N/A,,
Pendle Borough Council,Engineering & Special Projects,Supplies and Services,Other Expenses,4705,REDACTED - PERSONAL DATA,A0069967, 29/11/2018,HED0292175,7.84,N,N/A,N,N/A,,
Pendle Borough Council,Financial Services,Supplies and Services,Other Expenses,4705,ACTIVE LANCASHIRE LIMITED,A0070149, 29/11/2018,AAS0292306,8750.00,N,1159832,N,N/A,,
Pendle Borough Council,Operational Services,Capital Costs,Capital : Payments,CD14,CRAEMER UK LIMITED,A0070869, 22/11/2018,OPS0292098,170.00,N,N/A,N,N/A,,
Pendle Borough Council,Financial Services,Supplies and Services,Sub-Contractors,4007,QHS SOLUTIONS LIMITED,A0071912, 01/11/2018,AAS0292043,666.67,N,N/A,N,N/A,,
Pendle Borough Council,Parks & Recreation Services,Premises Related Expense,Grounds : R & M : Gds Maint ,2103,ASSIST MANAGED SERVICES LIMITED,A0072100, 22/11/2018,PCO0292058,4045.68,N,N/A,N,N/A,,
Pendle Borough Council,Parks & Recreation Services,Premises Related Expense,Grounds : R & M : Gds Maint ,2103,ASSIST MANAGED SERVICES LIMITED,A0072100, 22/11/2018,PCO0292060,4682.96,N,N/A,N,N/A,,
Pendle Borough Council,Housing Regeneration Services,Supplies and Services,Tests & Inspection Fees,4409,UNITED UTILITIES WATER PLC,A0072400, 29/11/2018,HMR0292294,638.54,N,N/A,N,N/A,,
Pendle Borough Council,Financial Services,Supplies and Services,Credit card and online charges,4421,GLOBAL PAYMENTS,A0072461, 16/11/2018,AAS0292159,7.00,N,N/A,N,N/A,,
Pendle Borough Council,Financial Services,Supplies and Services,Credit card and online charges,4421,GLOBAL PAYMENTS,A0072461, 16/11/2018,AAS0292160,7.00,N,N/A,N,N/A,,
Pendle Borough Council,Financial Services,Supplies and Services,Credit card and online charges,4421,GLOBAL PAYMENTS,A0072461, 16/11/2018,AAS0292161,7.00,N,N/A,N,N/A,,
Pendle Borough Council,Financial Services,Supplies and Services,Credit card and online charges,4421,GLOBAL PAYMENTS,A0072461, 16/11/2018,AAS0292160,24.00,N,N/A,N,N/A,,
Pendle Borough Council,Financial Services,Supplies and Services,Credit card and online charges,4421,GLOBAL PAYMENTS,A0072461, 16/11/2018,AAS0292161,29.00,N,N/A,N,N/A,,
Pendle Borough Council,Financial Services,Support Services,Bank Charges,7201,LLOYDS BANKING GROUP,A0072462, 02/11/2018,AAS0292046,1.14,N,N/A,N,N/A,,
Pendle Borough Council,Financial Services,Support Services,Bank Charges,7201,LLOYDS BANKING GROUP,A0072462, 23/11/2018,AAS0292301,15.00,N,N/A,N,N/A,,
Pendle Borough Council,Financial Services,Support Services,Bank Charges,7201,LLOYDS BANKING GROUP,A0072462, 23/11/2018,AAS0292301,50.00,N,N/A,N,N/A,,
Pendle Borough Council,Operational Services,Supplies and Services,Sub-Contractors,4007,CANNON HYGIENE LIMITED,A0072816, 08/11/2018,OPS0291911,200.74,N,N/A,N,N/A,,
Pendle Borough Council,Operational Services,Supplies and Services,Sub-Contractors,4007,CANNON HYGIENE LIMITED,A0072816, 08/11/2018,OPS0291911,2.27,N,N/A,N,N/A,,
Pendle Borough Council,Operational Services,Supplies and Services,Sub-Contractors,4007,CANNON HYGIENE LIMITED,A0072816, 08/11/2018,OPS0291910,4.26,N,N/A,N,N/A,,
Pendle Borough Council,Operational Services,Supplies and Services,Sub-Contractors,4007,CANNON HYGIENE LIMITED,A0072816, 08/11/2018,OPS0291908,8.52,N,N/A,N,N/A,,
Pendle Borough Council,Operational Services,Supplies and Services,Sub-Contractors,4007,CANNON HYGIENE LIMITED,A0072816, 08/11/2018,OPS0291909,10.64,N,N/A,N,N/A,,
Pendle Borough Council,Operational Services,Supplies and Services,Sub-Contractors,4007,TCS (WASTE) LIMITED,A0072822, 08/11/2018,OPS0291870,280.00,N,N/A,N,N/A,,
Pendle Borough Council,Financial Services,Indirect Employee Expenses,Recruitment,1221,DBS,A0072958, 19/11/2018,AAS0292158,264.00,N,N/A,N,N/A,,
Pendle Borough Council,Financial Services,Supplies and Services,Other Expenses,4705,DBS,A0072958, 19/11/2018,AAS0292158,1320.00,N,N/A,N,N/A,,
Pendle Borough Council,Democratic & Legal Services,Supplies and Services,Other Expenses,4705,COLNE RBL POPPY APPEAL,A0074447, 08/11/2018,DAL0291494,377.50,N,219729,N,N/A,,
Pendle Borough Council,Financial Services,Supplies and Services,Credit card and online charges,4421,LLOYDS BANK CARDNET,A0074460, 13/11/2018,AAS0292052,372.51,N,N/A,N,N/A,,
Pendle Borough Council,Financial Services,Supplies and Services,Credit card and online charges,4421,LLOYDS BANK CARDNET,A0074460, 13/11/2018,AAS0292054,537.22,N,N/A,N,N/A,,
Pendle Borough Council,Financial Services,Supplies and Services,Credit card and online charges,4421,LLOYDS BANK CARDNET,A0074460, 13/11/2018,AAS0292053,1049.34,N,N/A,N,N/A,,
Pendle Borough Council,Democratic & Legal Services,Supplies and Services,Seminars etc All Costs,4601,XPRESS SOFTWARE SOLUTIONS LTD,A0074727, 22/11/2018,DAL0292116,520.50,N,N/A,N,N/A,,
Pendle Borough Council,Operational Services,Agency Costs,Refuse Collection DLO,5005,C & C PROCESS SERVERS,A0074728, 22/11/2018,OPS0292132,85.00,N,N/A,N,N/A,,
Pendle Borough Council,Housing Regeneration Services,Capital Costs,Ren Grant : 1996 Act,CH22,OCEAN BATHROOMS TILES & HEATING LTD,A0075367, 29/11/2018,HMR0292296,4245.00,N,N/A,N,0,,
Pendle Borough Council,Housing Regeneration Services,Supplies and Services,Other Expenses,4705,FRED HAMER FUNERAL SVCS - HAVENCARE MGT LTD,A0075504, 29/11/2018,HMR0292295,1058.00,N,N/A,N,N/A,,
Pendle Borough Council,Chief Executives Policy Unit,Transport Related Expense,Car Allows : Offs : Casual,3802,REDACTED - PERSONAL DATA,A0076703, 15/11/2018,COR0291959,2.25,N,N/A,N,N/A,,
Pendle Borough Council,Democratic & Legal Services,Supplies and Services,Seminars etc All Costs,4601,REDACTED - PERSONAL DATA,A0076727, 08/11/2018,DAL0291854,1.75,N,N/A,N,N/A,,
Pendle Borough Council,Democratic & Legal Services,Supplies and Services,Seminars etc All Costs,4601,REDACTED - PERSONAL DATA,A0076727, 29/11/2018,DAL0292212,9.58,N,N/A,N,N/A,,
Pendle Borough Council,Democratic & Legal Services,Supplies and Services,Seminars etc All Costs,4601,REDACTED - PERSONAL DATA,A0076727, 29/11/2018,DAL0292180,10.30,N,N/A,N,N/A,,
Pendle Borough Council,Democratic & Legal Services,Supplies and Services,Seminars etc All Costs,4601,REDACTED - PERSONAL DATA,A0076727, 29/11/2018,DAL0292180,27.00,N,N/A,N,N/A,,
Pendle Borough Council,Financial Services,Supplies and Services,Subscriptions & Donations,4706,VODAFONE LIMITED,A0076999, 29/11/2018,AAS4005973,-739.00,N,N/A,N,N/A,,
Pendle Borough Council,Financial Services,Supplies and Services,Subscriptions & Donations,4706,VODAFONE LIMITED,A0076999, 29/11/2018,AAS0292311,5469.31,N,N/A,N,N/A,,
Pendle Borough Council,Democratic & Legal Services,Supplies and Services,Seminars etc All Costs,4601,REDACTED - PERSONAL DATA,A0077487, 08/11/2018,DAL0291822,6.24,N,N/A,N,N/A,,
Pendle Borough Council,Democratic & Legal Services,Supplies and Services,Seminars etc All Costs,4601,REDACTED - PERSONAL DATA,A0077487, 29/11/2018,DAL0292181,10.42,N,N/A,N,N/A,,
Pendle Borough Council,Engineering & Special Projects,Premises Related Expense,Passenger Shelter Cleaning,2606,JANDON CLEANING SERVICES,A0079028, 15/11/2018,HED0291989,60.00,N,N/A,N,N/A,,
Pendle Borough Council,Parks & Recreation Services,Supplies and Services,EFM : Other Equipment,4003,GROUNDSMAN TOOLS & SUPPLIES LLP,A0079260, 15/11/2018,PCO0291935,31.50,N,N/A,N,N/A,,
Pendle Borough Council,Parks & Recreation Services,Supplies and Services,EFM : Other Equipment,4003,GROUNDSMAN TOOLS & SUPPLIES LLP,A0079260, 15/11/2018,PCO0291935,31.50,N,N/A,N,N/A,,
Pendle Borough Council,Parks & Recreation Services,Supplies and Services,EFM : Other Equipment,4003,GROUNDSMAN TOOLS & SUPPLIES LLP,A0079260, 15/11/2018,PCO0291935,131.38,N,N/A,N,N/A,,
Pendle Borough Council,Housing Regeneration Services,Supplies and Services,EFM : Other Equipment,4003,KINGS WASHING MACHINE RENTALS,A0079878, 15/11/2018,HMR0291957,55.00,N,N/A,N,N/A,,
Pendle Borough Council,Housing Regeneration Services,Capital Costs,Capital : Payments,CD14,HILL DICKINSON LLP,A0080232, 08/11/2018,HMR0291846,612.00,N,N/A,N,N/A,,
Pendle Borough Council,Housing Regeneration Services,Capital Costs,Capital : Payments,CD14,HILL DICKINSON LLP,A0080232, 08/11/2018,HMR0291847,1140.00,N,N/A,N,N/A,,
Pendle Borough Council,Chief Executives Policy Unit,Transport Related Expense,Car Allows : Offs : Casual,3802,REDACTED - PERSONAL DATA,A0080316, 22/11/2018,COR0292059,5.41,N,N/A,N,N/A,,
Pendle Borough Council,Housing Regeneration Services,Supplies and Services,Other Expenses,4705,QUALITY HOMES (NW) LIMITED,A0081253, 22/11/2018,HMR0292141,200.00,N,N/A,N,N/A,,
Pendle Borough Council,Operational Services,Supplies and Services,Other Expenses,4705,MANCHESTER SAFETY SERVICES LTD,A0082149, 22/11/2018,OPS0292131,304.00,N,N/A,N,N/A,,
Pendle Borough Council,Planning & Building Control,Supplies and Services,Planning Appeals,4415,JWPC LIMITED,A0082220, 15/11/2018,PBC0291985,9750.00,N,N/A,N,N/A,,
Pendle Borough Council,Financial Services,Supplies and Services,Subscriptions & Donations,4706,ROUGHLEE PARISH COUNCIL,A0082370, 22/11/2018,AAS0292075,300.00,N,N/A,N,N/A,,
Pendle Borough Council,Financial Services,Supplies and Services,Subscriptions & Donations,4706,ROUGHLEE PARISH COUNCIL,A0082370, 22/11/2018,AAS0292076,300.00,N,N/A,N,N/A,,
Pendle Borough Council,Housing Regeneration Services,Supplies and Services,Consultants Fees,4401,CALICO ENTERPRISE,A0082574, 29/11/2018,HMR0292166,1184.90,N,N/A,N,N/A,,
Pendle Borough Council,Housing Regeneration Services,Supplies and Services,Consultants Fees,4401,CALICO ENTERPRISE,A0082574, 29/11/2018,HMR0292167,3468.00,N,N/A,N,N/A,,
Pendle Borough Council,Housing Regeneration Services,Supplies and Services,Miscellaneous : Other,4707,CALICO ENTERPRISE,A0082574, 29/11/2018,HMR0292167,1061.84,N,N/A,N,N/A,,
Pendle Borough Council,Parks & Recreation Services,Transport Related Expense,Petrol,3201,TATE FUEL OILS LIMITED,A0082819, 01/11/2018,PCO0291712,1649.55,N,N/A,N,N/A,,
Pendle Borough Council,Engineering & Special Projects,Capital Costs,Capital : Payments,CD14,KELBROOK & SOUGH VILLAGE HALL,A0083148, 01/11/2018,HED0291721,2000.00,N,N/A,N,N/A,,
Pendle Borough Council,Financial Services,Supplies and Services,Consultants Fees,4401,HM COURTS & TRIBUNALS SERVICE,A0083319, 16/11/2018,AAS0292156,9.50,N,N/A,N,N/A,,
Pendle Borough Council,Financial Services,Supplies and Services,Consultants Fees,4401,HM COURTS & TRIBUNALS SERVICE,A0083319, 16/11/2018,AAS0292156,685.00,N,N/A,N,N/A,,
Pendle Borough Council,Financial Services,Supplies and Services,Consultants Fees,4401,HM COURTS & TRIBUNALS SERVICE,A0083319, 16/11/2018,AAS0292157,380.00,N,N/A,N,N/A,,
Pendle Borough Council,Operational Services,Transport Related Expense,Diesel Oil,3202,CRAGGS ENERGY LIMITED,A0083617, 08/11/2018,OPS0291871,1889.70,N,N/A,N,N/A,,
Pendle Borough Council,Planning & Building Control,,Other Income : Non-VATable,9303,REDACTED - PERSONAL DATA,A0084247, 15/11/2018,PBC0291991,49.87,N,N/A,N,N/A,,
Pendle Borough Council,Financial Services,Supplies and Services,Allpay,4422,ALLPAY LIMITED,A0084372, 08/11/2018,AAS0291827,10.37,N,N/A,N,N/A,,
Pendle Borough Council,Financial Services,Supplies and Services,Allpay,4422,ALLPAY LIMITED,A0084372, 08/11/2018,AAS0291824,10.82,N,N/A,N,N/A,,
Pendle Borough Council,Financial Services,Supplies and Services,Allpay,4422,ALLPAY LIMITED,A0084372, 08/11/2018,AAS0291823,26.89,N,N/A,N,N/A,,
Pendle Borough Council,Financial Services,Supplies and Services,Allpay,4422,ALLPAY LIMITED,A0084372, 08/11/2018,AAS0291825,32.25,N,N/A,N,N/A,,
Pendle Borough Council,Financial Services,Supplies and Services,Allpay,4422,ALLPAY LIMITED,A0084372, 08/11/2018,AAS0291826,115.72,N,N/A,N,N/A,,
Pendle Borough Council,Financial Services,Supplies and Services,Allpay,4422,ALLPAY LIMITED,A0084372, 08/11/2018,AAS0291821,2586.74,N,N/A,N,N/A,,
Pendle Borough Council,Revenues Services,,Fees Income : Non-VATable,9302,WILKIN CHAPMAN LLP,A0084376, 01/11/2018,TRE0291654,133.00,N,N/A,N,N/A,,
Pendle Borough Council,Revenues Services,,Fees Income : Non-VATable,9302,WILKIN CHAPMAN LLP,A0084376, 01/11/2018,TRE0291654,175.00,N,N/A,N,N/A,,
Pendle Borough Council,Housing Regeneration Services,Capital Costs,Capital : Payments,CD14,DWF LLP,A0084385, 08/11/2018,HMR0291848,1287.00,N,N/A,N,N/A,,
Pendle Borough Council,Environmental Health Services,Capital Costs,Ren Grant : 1996 Act,CH22,ELITE PLUMBING,A0084584, 01/11/2018,ENV0291684,648.00,N,N/A,N,0,,
Pendle Borough Council,Engineering & Special Projects,Premises Related Expense,Grounds : R & M : Day to Day : Routine,2101,KEVIN WILKINSON LANDSCAPES LTD,A0085660, 08/11/2018,HED0291858,250.00,N,N/A,N,N/A,,
Pendle Borough Council,Engineering & Special Projects,Premises Related Expense,Grounds : R & M : Day to Day : Routine,2101,KEVIN WILKINSON LANDSCAPES LTD,A0085660, 08/11/2018,HED0291841,378.00,N,N/A,N,N/A,,
Pendle Borough Council,Property Services,Premises Related Expense,Bldgs : R & M : Day To Day,2001,HAWKESWORTH APPLIANCE TESTING LTD,A0086095, 01/11/2018,EST0291660,113.26,N,N/A,N,N/A,,
Pendle Borough Council,Property Services,Premises Related Expense,Bldgs : R & M : Day To Day,2001,HAWKESWORTH APPLIANCE TESTING LTD,A0086095, 01/11/2018,EST0291661,53.50,N,N/A,N,N/A,,
Pendle Borough Council,Operational Services,Supplies and Services,Other Expenses,4705,PRINTDESIGNS LIMITED,A0088150, 22/11/2018,OPS0292123,85.00,N,N/A,N,N/A,,
Pendle Borough Council,Human Resources,Indirect Employee Expenses,Emp : Medical Expenses,1236,HEALTH BUSINESS LIMITED,A0088933, 15/11/2018,PER0291981,285.00,N,N/A,N,N/A,,
Pendle Borough Council,Human Resources,Indirect Employee Expenses,Emp : Medical Expenses,1236,HEALTH BUSINESS LIMITED,A0088933, 15/11/2018,PER0291981,700.00,N,N/A,N,N/A,,
Pendle Borough Council,Financial Services,Supplies and Services,Consultants Fees,4401,AURORA ACCOUNTING SERVICES,A0089134, 08/11/2018,AAS0291831,3690.00,N,N/A,N,N/A,,
Pendle Borough Council,Property Services,Premises Related Expense,Bldgs : R & M : Day To Day,2001,CATCHPOINT (UK) LIMITED,A0089500, 22/11/2018,EST0292061,60.00,N,N/A,N,N/A,,
Pendle Borough Council,Property Services,Capital Costs,Capital : Payments,CD14,CATCHPOINT (UK) LIMITED,A0089500, 01/11/2018,EST0291659,1800.00,N,N/A,N,N/A,,
Pendle Borough Council,Operational Services,Indirect Employee Expenses,Lone Worker Monitoring Service,1270,SOLOPROTECT LIMITED,A0089719, 29/11/2018,OPS0292153,10.84,N,N/A,N,N/A,,
Pendle Borough Council,Operational Services,Indirect Employee Expenses,Lone Worker Monitoring Service,1270,SOLOPROTECT LIMITED,A0089719, 01/11/2018,OPS0291716,11.06,N,N/A,N,N/A,,
Pendle Borough Council,Operational Services,Indirect Employee Expenses,Lone Worker Monitoring Service,1270,SOLOPROTECT LIMITED,A0089719, 29/11/2018,OPS0292273,11.06,N,N/A,N,N/A,,
Pendle Borough Council,Operational Services,Indirect Employee Expenses,Lone Worker Monitoring Service,1270,SOLOPROTECT LIMITED,A0089719, 01/11/2018,OPS0291715,394.80,N,N/A,N,N/A,,
Pendle Borough Council,Environmental Health Services,Supplies and Services,Other Expenses,4705,SOLOPROTECT LIMITED,A0089719, 01/11/2018,ENV0291682,44.24,N,N/A,N,N/A,,
Pendle Borough Council,Engineering & Special Projects,Capital Costs,Capital : Payments,CD14,UNIVERSAL CONTAINERS LTD,A0089970, 22/11/2018,HED0292142,1995.00,N,N/A,N,N/A,,
Pendle Borough Council,Engineering & Special Projects,Capital Costs,Capital : Payments,CD14,UNIVERSAL CONTAINERS LTD,A0089970, 15/11/2018,HED0292008,1140.00,N,N/A,N,N/A,,
Pendle Borough Council,Property Services,Premises Related Expense,Bldgs : R & M : Day To Day,2001,LIGHTNING CONSULTANTS (UK) LIMITED,A0089984, 22/11/2018,EST0292062,995.00,N,N/A,N,N/A,,
Pendle Borough Council,Property Services,Premises Related Expense,Bldgs : Vandalism Repairs,2005,LIGHTNING CONSULTANTS (UK) LIMITED,A0089984, 08/11/2018,EST0291780,245.00,N,N/A,N,N/A,,
Pendle Borough Council,Property Services,Premises Related Expense,Bldgs : Vandalism Repairs,2005,LIGHTNING CONSULTANTS (UK) LIMITED,A0089984, 22/11/2018,EST0292062,220.00,N,N/A,N,N/A,,
Pendle Borough Council,Property Services,Capital Costs,Capital : Payments,CD14,LIGHTNING CONSULTANTS (UK) LIMITED,A0089984, 29/11/2018,EST0292194,385.00,N,N/A,N,N/A,,
Pendle Borough Council,Democratic & Legal Services,Premises Related Expense,Rents,2301,TRAWDEN FOREST COMMUNITY CENTRE,A0090063, 08/11/2018,DAL0291820,100.00,N,1158193,N,N/A,,
Pendle Borough Council,Parks & Recreation Services,Premises Related Expense,Grounds : R & M : Day to Day : Routine,2101,SALTERFORTH NURSERIES & GARDEN CTR LTD,A0090064, 08/11/2018,PCO0291886,99.17,N,N/A,N,N/A,,
Pendle Borough Council,Operational Services,Agency Staff,Emp : Agency Wages,1004,RAPID RECRUIT LIMITED,A0090080, 08/11/2018,OPS0291902,1359.73,N,N/A,N,N/A,,
Pendle Borough Council,Operational Services,Agency Staff,Emp : Agency Wages,1004,RAPID RECRUIT LIMITED,A0090080, 22/11/2018,OPS0292135,1921.52,N,N/A,N,N/A,,
Pendle Borough Council,Operational Services,Agency Staff,Emp : Agency Wages,1004,RAPID RECRUIT LIMITED,A0090080, 08/11/2018,OPS0291912,1963.05,N,N/A,N,N/A,,
Pendle Borough Council,Operational Services,Agency Staff,Emp : Agency Wages,1004,RAPID RECRUIT LIMITED,A0090080, 22/11/2018,OPS0292136,1984.72,N,N/A,N,N/A,,
Pendle Borough Council,Operational Services,Agency Staff,Emp : Agency Wages,1004,RAPID RECRUIT LIMITED,A0090080, 29/11/2018,OPS0292151,2585.83,N,N/A,N,N/A,,
Pendle Borough Council,Operational Services,Agency Staff,Emp : Agency Wages,1004,RAPID RECRUIT LIMITED,A0090080, 08/11/2018,OPS0291901,2914.14,N,N/A,N,N/A,,
Pendle Borough Council,Operational Services,Agency Staff,Emp : Agency Wages,1004,RAPID RECRUIT LIMITED,A0090080, 22/11/2018,OPS0292136,894.25,N,N/A,N,N/A,,
Pendle Borough Council,Operational Services,Agency Staff,Emp : Agency Wages,1004,RAPID RECRUIT LIMITED,A0090080, 08/11/2018,OPS0291912,932.03,N,N/A,N,N/A,,
Pendle Borough Council,Operational Services,Agency Staff,Emp : Agency Wages,1004,RAPID RECRUIT LIMITED,A0090080, 29/11/2018,OPS0292151,1479.74,N,N/A,N,N/A,,
Pendle Borough Council,Operational Services,Agency Staff,Emp : Agency Wages,1004,RAPID RECRUIT LIMITED,A0090080, 08/11/2018,OPS0291902,1516.94,N,N/A,N,N/A,,
Pendle Borough Council,Operational Services,Agency Staff,Emp : Agency Wages,1004,RAPID RECRUIT LIMITED,A0090080, 22/11/2018,OPS0292135,1601.88,N,N/A,N,N/A,,
Pendle Borough Council,Operational Services,Agency Staff,Emp : Agency Wages,1004,RAPID RECRUIT LIMITED,A0090080, 08/11/2018,OPS0291901,1840.99,N,N/A,N,N/A,,
Pendle Borough Council,Operational Services,Agency Staff,Emp : Agency Wages,1004,RAPID RECRUIT LIMITED,A0090080, 22/11/2018,OPS0292136,77.93,N,N/A,N,N/A,,
Pendle Borough Council,Operational Services,Agency Staff,Emp : Agency Wages,1004,RAPID RECRUIT LIMITED,A0090080, 08/11/2018,OPS0291901,231.97,N,N/A,N,N/A,,
Pendle Borough Council,Operational Services,Agency Staff,Emp : Agency Wages,1004,RAPID RECRUIT LIMITED,A0090080, 22/11/2018,OPS0292135,309.88,N,N/A,N,N/A,,
Pendle Borough Council,Operational Services,Agency Staff,Emp : Agency Wages,1004,RAPID RECRUIT LIMITED,A0090080, 29/11/2018,OPS0292151,318.15,N,N/A,N,N/A,,
Pendle Borough Council,Operational Services,Agency Staff,Emp : Agency Wages,1004,RAPID RECRUIT LIMITED,A0090080, 08/11/2018,OPS0291912,378.30,N,N/A,N,N/A,,
Pendle Borough Council,Operational Services,Agency Staff,Emp : Agency Wages,1004,RAPID RECRUIT LIMITED,A0090080, 08/11/2018,OPS0291902,1541.69,N,N/A,N,N/A,,
Pendle Borough Council,Parks & Recreation Services,Transport Related Expense,Tprt : Repairs : General,3105,LEWIS EQUIPMENT - PEAK DYNAMICS LIMITED,A0090108, 22/11/2018,PCO0292108,104.42,N,N/A,N,N/A,,
Pendle Borough Council,Democratic & Legal Services,Supplies and Services,Other Expenses,4705,NELSON BRASS BAND,A0090129, 22/11/2018,DAL0292037,270.00,N,N/A,N,N/A,,
Pendle Borough Council,Parks & Recreation Services,Premises Related Expense,Grounds : R & M : Day to Day : Routine,2101,MARTIN LEE,A0090177, 22/11/2018,PCO0292117,103.60,N,N/A,N,N/A,,
Pendle Borough Council,Parks & Recreation Services,Premises Related Expense,Grounds : R & M : Day to Day : Routine,2101,MARTIN LEE,A0090177, 22/11/2018,PCO0292117,300.00,N,N/A,N,N/A,,
Pendle Borough Council,Parks & Recreation Services,Premises Related Expense,Grounds : R & M : Day to Day : Routine,2101,MARTIN LEE,A0090177, 22/11/2018,PCO0292117,250.00,N,N/A,N,N/A,,
Pendle Borough Council,Financial Services,Transport Related Expense,Diesel Oil,3202,FUELMATE LTD,A0090265, 27/11/2018,AAS0292324,10.71,N,N/A,N,N/A,,
Pendle Borough Council,Financial Services,Transport Related Expense,Diesel Oil,3202,FUELMATE LTD,A0090265, 13/11/2018,AAS0292051,38.43,N,N/A,N,N/A,,
Pendle Borough Council,Financial Services,Transport Related Expense,Diesel Oil,3202,FUELMATE LTD,A0090265, 13/11/2018,AAS0292051,40.31,N,N/A,N,N/A,,
Pendle Borough Council,Financial Services,Transport Related Expense,Diesel Oil,3202,FUELMATE LTD,A0090265, 20/11/2018,AAS0292172,53.83,N,N/A,N,N/A,,
Pendle Borough Council,Financial Services,Transport Related Expense,Diesel Oil,3202,FUELMATE LTD,A0090265, 27/11/2018,AAS0292324,56.09,N,N/A,N,N/A,,
Pendle Borough Council,Financial Services,Transport Related Expense,Diesel Oil,3202,FUELMATE LTD,A0090265, 13/11/2018,AAS0292051,63.07,N,N/A,N,N/A,,
Pendle Borough Council,Financial Services,Transport Related Expense,Diesel Oil,3202,FUELMATE LTD,A0090265, 27/11/2018,AAS0292324,66.04,N,N/A,N,N/A,,
Pendle Borough Council,Financial Services,Transport Related Expense,Diesel Oil,3202,FUELMATE LTD,A0090265, 20/11/2018,AAS0292172,66.56,N,N/A,N,N/A,,
Pendle Borough Council,Financial Services,Transport Related Expense,Diesel Oil,3202,FUELMATE LTD,A0090265, 13/11/2018,AAS0292051,67.56,N,N/A,N,N/A,,
Pendle Borough Council,Financial Services,Transport Related Expense,Diesel Oil,3202,FUELMATE LTD,A0090265, 27/11/2018,AAS0292324,67.67,N,N/A,N,N/A,,
Pendle Borough Council,Financial Services,Transport Related Expense,Diesel Oil,3202,FUELMATE LTD,A0090265, 27/11/2018,AAS0292324,69.29,N,N/A,N,N/A,,
Pendle Borough Council,Financial Services,Transport Related Expense,Diesel Oil,3202,FUELMATE LTD,A0090265, 06/11/2018,AAS0292047,77.39,N,N/A,N,N/A,,
Pendle Borough Council,Financial Services,Transport Related Expense,Diesel Oil,3202,FUELMATE LTD,A0090265, 27/11/2018,AAS0292324,84.51,N,N/A,N,N/A,,
Pendle Borough Council,Financial Services,Transport Related Expense,Diesel Oil,3202,FUELMATE LTD,A0090265, 13/11/2018,AAS0292051,89.29,N,N/A,N,N/A,,
Pendle Borough Council,Financial Services,Transport Related Expense,Diesel Oil,3202,FUELMATE LTD,A0090265, 06/11/2018,AAS0292047,104.25,N,N/A,N,N/A,,
Pendle Borough Council,Financial Services,Transport Related Expense,Diesel Oil,3202,FUELMATE LTD,A0090265, 06/11/2018,AAS0292047,118.00,N,N/A,N,N/A,,
Pendle Borough Council,Financial Services,Transport Related Expense,Diesel Oil,3202,FUELMATE LTD,A0090265, 20/11/2018,AAS0292172,134.80,N,N/A,N,N/A,,
Pendle Borough Council,Financial Services,Transport Related Expense,Diesel Oil,3202,FUELMATE LTD,A0090265, 20/11/2018,AAS0292172,175.20,N,N/A,N,N/A,,
Pendle Borough Council,Financial Services,Transport Related Expense,Diesel Oil,3202,FUELMATE LTD,A0090265, 06/11/2018,AAS0292047,331.78,N,N/A,N,N/A,,
Pendle Borough Council,Financial Services,Transport Related Expense,Diesel Oil,3202,FUELMATE LTD,A0090265, 13/11/2018,AAS0292051,339.05,N,N/A,N,N/A,,
Pendle Borough Council,Financial Services,Transport Related Expense,Diesel Oil,3202,FUELMATE LTD,A0090265, 27/11/2018,AAS0292324,371.96,N,N/A,N,N/A,,
Pendle Borough Council,Financial Services,Transport Related Expense,Diesel Oil,3202,FUELMATE LTD,A0090265, 27/11/2018,AAS0292324,281.83,N,N/A,N,N/A,,
Pendle Borough Council,Financial Services,Transport Related Expense,Diesel Oil,3202,FUELMATE LTD,A0090265, 06/11/2018,AAS0292047,309.77,N,N/A,N,N/A,,
Pendle Borough Council,Financial Services,Transport Related Expense,Diesel Oil,3202,FUELMATE LTD,A0090265, 20/11/2018,AAS0292172,309.92,N,N/A,N,N/A,,
Pendle Borough Council,Financial Services,Transport Related Expense,Diesel Oil,3202,FUELMATE LTD,A0090265, 20/11/2018,AAS0292172,222.47,N,N/A,N,N/A,,
Pendle Borough Council,Financial Services,Transport Related Expense,Diesel Oil,3202,FUELMATE LTD,A0090265, 06/11/2018,AAS0292047,261.29,N,N/A,N,N/A,,
Pendle Borough Council,Financial Services,Transport Related Expense,Diesel Oil,3202,FUELMATE LTD,A0090265, 13/11/2018,AAS0292051,308.00,N,N/A,N,N/A,,
Pendle Borough Council,Financial Services,Transport Related Expense,Diesel Oil,3202,FUELMATE LTD,A0090265, 27/11/2018,AAS0292324,346.80,N,N/A,N,N/A,,
Pendle Borough Council,Financial Services,Transport Related Expense,Diesel Oil,3202,FUELMATE LTD,A0090265, 06/11/2018,AAS0292047,214.02,N,N/A,N,N/A,,
Pendle Borough Council,Financial Services,Transport Related Expense,Diesel Oil,3202,FUELMATE LTD,A0090265, 20/11/2018,AAS0292172,282.59,N,N/A,N,N/A,,
Pendle Borough Council,Financial Services,Transport Related Expense,Diesel Oil,3202,FUELMATE LTD,A0090265, 13/11/2018,AAS0292051,288.03,N,N/A,N,N/A,,
Pendle Borough Council,Financial Services,Transport Related Expense,Diesel Oil,3202,FUELMATE LTD,A0090265, 27/11/2018,AAS0292324,360.45,N,N/A,N,N/A,,
Pendle Borough Council,Financial Services,Transport Related Expense,Diesel Oil,3202,FUELMATE LTD,A0090265, 20/11/2018,AAS0292172,204.65,N,N/A,N,N/A,,
Pendle Borough Council,Financial Services,Transport Related Expense,Diesel Oil,3202,FUELMATE LTD,A0090265, 06/11/2018,AAS0292047,220.62,N,N/A,N,N/A,,
Pendle Borough Council,Financial Services,Transport Related Expense,Diesel Oil,3202,FUELMATE LTD,A0090265, 13/11/2018,AAS0292051,337.22,N,N/A,N,N/A,,
Pendle Borough Council,Financial Services,Transport Related Expense,Diesel Oil,3202,FUELMATE LTD,A0090265, 27/11/2018,AAS0292324,374.05,N,N/A,N,N/A,,
Pendle Borough Council,Financial Services,Transport Related Expense,Diesel Oil,3202,FUELMATE LTD,A0090265, 27/11/2018,AAS0292324,158.76,N,N/A,N,N/A,,
Pendle Borough Council,Financial Services,Transport Related Expense,Diesel Oil,3202,FUELMATE LTD,A0090265, 06/11/2018,AAS0292047,174.08,N,N/A,N,N/A,,
Pendle Borough Council,Financial Services,Transport Related Expense,Diesel Oil,3202,FUELMATE LTD,A0090265, 13/11/2018,AAS0292051,200.50,N,N/A,N,N/A,,
Pendle Borough Council,Financial Services,Transport Related Expense,Diesel Oil,3202,FUELMATE LTD,A0090265, 20/11/2018,AAS0292172,231.94,N,N/A,N,N/A,,
Pendle Borough Council,Financial Services,Transport Related Expense,Diesel Oil,3202,FUELMATE LTD,A0090265, 13/11/2018,AAS0292051,37.79,N,N/A,N,N/A,,
Pendle Borough Council,Financial Services,Transport Related Expense,Diesel Oil,3202,FUELMATE LTD,A0090265, 20/11/2018,AAS0292172,42.83,N,N/A,N,N/A,,
Pendle Borough Council,Financial Services,Transport Related Expense,Diesel Oil,3202,FUELMATE LTD,A0090265, 06/11/2018,AAS0292047,54.39,N,N/A,N,N/A,,
Pendle Borough Council,Financial Services,Transport Related Expense,Diesel Oil,3202,FUELMATE LTD,A0090265, 20/11/2018,AAS0292172,69.77,N,N/A,N,N/A,,
Pendle Borough Council,Financial Services,Transport Related Expense,Diesel Oil,3202,FUELMATE LTD,A0090265, 27/11/2018,AAS0292324,74.34,N,N/A,N,N/A,,
Pendle Borough Council,Financial Services,Transport Related Expense,Diesel Oil,3202,FUELMATE LTD,A0090265, 20/11/2018,AAS0292172,102.53,N,N/A,N,N/A,,
Pendle Borough Council,Financial Services,Transport Related Expense,Diesel Oil,3202,FUELMATE LTD,A0090265, 06/11/2018,AAS0292047,256.92,N,N/A,N,N/A,,
Pendle Borough Council,Financial Services,Transport Related Expense,Diesel Oil,3202,FUELMATE LTD,A0090265, 13/11/2018,AAS0292051,257.26,N,N/A,N,N/A,,
Pendle Borough Council,Financial Services,Transport Related Expense,Diesel Oil,3202,FUELMATE LTD,A0090265, 20/11/2018,AAS0292172,263.90,N,N/A,N,N/A,,
Pendle Borough Council,Financial Services,Transport Related Expense,Diesel Oil,3202,FUELMATE LTD,A0090265, 27/11/2018,AAS0292324,291.24,N,N/A,N,N/A,,
Pendle Borough Council,Financial Services,Transport Related Expense,Diesel Oil,3202,FUELMATE LTD,A0090265, 13/11/2018,AAS0292051,153.73,N,N/A,N,N/A,,
Pendle Borough Council,Financial Services,Transport Related Expense,Diesel Oil,3202,FUELMATE LTD,A0090265, 06/11/2018,AAS0292047,196.80,N,N/A,N,N/A,,
Pendle Borough Council,Financial Services,Transport Related Expense,Diesel Oil,3202,FUELMATE LTD,A0090265, 20/11/2018,AAS0292172,216.10,N,N/A,N,N/A,,
Pendle Borough Council,Financial Services,Transport Related Expense,Diesel Oil,3202,FUELMATE LTD,A0090265, 27/11/2018,AAS0292324,223.38,N,N/A,N,N/A,,
Pendle Borough Council,Financial Services,Transport Related Expense,Diesel Oil,3202,FUELMATE LTD,A0090265, 06/11/2018,AAS0292047,125.45,N,N/A,N,N/A,,
Pendle Borough Council,Financial Services,Transport Related Expense,Diesel Oil,3202,FUELMATE LTD,A0090265, 20/11/2018,AAS0292172,278.35,N,N/A,N,N/A,,
Pendle Borough Council,Financial Services,Transport Related Expense,Diesel Oil,3202,FUELMATE LTD,A0090265, 27/11/2018,AAS0292324,381.45,N,N/A,N,N/A,,
Pendle Borough Council,Financial Services,Transport Related Expense,Diesel Oil,3202,FUELMATE LTD,A0090265, 13/11/2018,AAS0292051,55.96,N,N/A,N,N/A,,
Pendle Borough Council,Financial Services,Transport Related Expense,Diesel Oil,3202,FUELMATE LTD,A0090265, 27/11/2018,AAS0292324,95.39,N,N/A,N,N/A,,
Pendle Borough Council,Financial Services,Transport Related Expense,Diesel Oil,3202,FUELMATE LTD,A0090265, 20/11/2018,AAS0292172,106.69,N,N/A,N,N/A,,
Pendle Borough Council,Financial Services,Transport Related Expense,Diesel Oil,3202,FUELMATE LTD,A0090265, 06/11/2018,AAS0292047,131.25,N,N/A,N,N/A,,
Pendle Borough Council,Financial Services,Transport Related Expense,Diesel Oil,3202,FUELMATE LTD,A0090265, 06/11/2018,AAS0292047,163.79,N,N/A,N,N/A,,
Pendle Borough Council,Financial Services,Transport Related Expense,Diesel Oil,3202,FUELMATE LTD,A0090265, 27/11/2018,AAS0292324,220.80,N,N/A,N,N/A,,
Pendle Borough Council,Financial Services,Transport Related Expense,Diesel Oil,3202,FUELMATE LTD,A0090265, 20/11/2018,AAS0292172,234.91,N,N/A,N,N/A,,
Pendle Borough Council,Financial Services,Transport Related Expense,Diesel Oil,3202,FUELMATE LTD,A0090265, 13/11/2018,AAS0292051,358.93,N,N/A,N,N/A,,
Pendle Borough Council,Financial Services,Transport Related Expense,Diesel Oil,3202,FUELMATE LTD,A0090265, 27/11/2018,AAS0292324,182.45,N,N/A,N,N/A,,
Pendle Borough Council,Financial Services,Transport Related Expense,Diesel Oil,3202,FUELMATE LTD,A0090265, 13/11/2018,AAS0292051,242.29,N,N/A,N,N/A,,
Pendle Borough Council,Financial Services,Transport Related Expense,Diesel Oil,3202,FUELMATE LTD,A0090265, 06/11/2018,AAS0292047,244.46,N,N/A,N,N/A,,
Pendle Borough Council,Financial Services,Transport Related Expense,Diesel Oil,3202,FUELMATE LTD,A0090265, 20/11/2018,AAS0292172,259.07,N,N/A,N,N/A,,
Pendle Borough Council,Financial Services,Transport Related Expense,Diesel Oil,3202,FUELMATE LTD,A0090265, 20/11/2018,AAS0292172,189.92,N,N/A,N,N/A,,
Pendle Borough Council,Financial Services,Transport Related Expense,Diesel Oil,3202,FUELMATE LTD,A0090265, 06/11/2018,AAS0292047,214.33,N,N/A,N,N/A,,
Pendle Borough Council,Financial Services,Transport Related Expense,Diesel Oil,3202,FUELMATE LTD,A0090265, 27/11/2018,AAS0292324,280.43,N,N/A,N,N/A,,
Pendle Borough Council,Financial Services,Transport Related Expense,Diesel Oil,3202,FUELMATE LTD,A0090265, 13/11/2018,AAS0292051,306.64,N,N/A,N,N/A,,
Pendle Borough Council,Financial Services,Transport Related Expense,Diesel Oil,3202,FUELMATE LTD,A0090265, 20/11/2018,AAS0292172,164.72,N,N/A,N,N/A,,
Pendle Borough Council,Financial Services,Transport Related Expense,Diesel Oil,3202,FUELMATE LTD,A0090265, 06/11/2018,AAS0292047,231.30,N,N/A,N,N/A,,
Pendle Borough Council,Financial Services,Transport Related Expense,Diesel Oil,3202,FUELMATE LTD,A0090265, 13/11/2018,AAS0292051,333.04,N,N/A,N,N/A,,
Pendle Borough Council,Financial Services,Transport Related Expense,Diesel Oil,3202,FUELMATE LTD,A0090265, 27/11/2018,AAS0292324,357.78,N,N/A,N,N/A,,
Pendle Borough Council,Financial Services,Transport Related Expense,Diesel Oil,3202,FUELMATE LTD,A0090265, 13/11/2018,AAS0292051,77.56,N,N/A,N,N/A,,
Pendle Borough Council,Financial Services,Transport Related Expense,Diesel Oil,3202,FUELMATE LTD,A0090265, 13/11/2018,AAS0292051,94.57,N,N/A,N,N/A,,
Pendle Borough Council,Financial Services,Transport Related Expense,Diesel Oil,3202,FUELMATE LTD,A0090265, 27/11/2018,AAS0292324,123.47,N,N/A,N,N/A,,
Pendle Borough Council,Financial Services,Transport Related Expense,Diesel Oil,3202,FUELMATE LTD,A0090265, 20/11/2018,AAS0292172,132.50,N,N/A,N,N/A,,
Pendle Borough Council,Financial Services,Transport Related Expense,Diesel Oil,3202,FUELMATE LTD,A0090265, 27/11/2018,AAS0292324,133.30,N,N/A,N,N/A,,
Pendle Borough Council,Financial Services,Transport Related Expense,Diesel Oil,3202,FUELMATE LTD,A0090265, 20/11/2018,AAS0292172,109.68,N,N/A,N,N/A,,
Pendle Borough Council,Financial Services,Transport Related Expense,Diesel Oil,3202,FUELMATE LTD,A0090265, 13/11/2018,AAS0292051,112.95,N,N/A,N,N/A,,
Pendle Borough Council,Financial Services,Transport Related Expense,Diesel Oil,3202,FUELMATE LTD,A0090265, 06/11/2018,AAS0292047,126.19,N,N/A,N,N/A,,
Pendle Borough Council,Financial Services,Transport Related Expense,Diesel Oil,3202,FUELMATE LTD,A0090265, 27/11/2018,AAS0292324,521.83,N,N/A,N,N/A,,
Pendle Borough Council,Financial Services,Transport Related Expense,Diesel Oil,3202,FUELMATE LTD,A0090265, 13/11/2018,AAS0292051,202.35,N,N/A,N,N/A,,
Pendle Borough Council,Financial Services,Transport Related Expense,Diesel Oil,3202,FUELMATE LTD,A0090265, 06/11/2018,AAS0292047,202.78,N,N/A,N,N/A,,
Pendle Borough Council,Financial Services,Transport Related Expense,Diesel Oil,3202,FUELMATE LTD,A0090265, 20/11/2018,AAS0292172,203.63,N,N/A,N,N/A,,
Pendle Borough Council,Financial Services,Transport Related Expense,Diesel Oil,3202,FUELMATE LTD,A0090265, 27/11/2018,AAS0292324,216.08,N,N/A,N,N/A,,
Pendle Borough Council,Financial Services,Transport Related Expense,Diesel Oil,3202,FUELMATE LTD,A0090265, 13/11/2018,AAS0292051,93.91,N,N/A,N,N/A,,
Pendle Borough Council,Financial Services,Transport Related Expense,Diesel Oil,3202,FUELMATE LTD,A0090265, 20/11/2018,AAS0292172,204.82,N,N/A,N,N/A,,
Pendle Borough Council,Financial Services,Transport Related Expense,Diesel Oil,3202,FUELMATE LTD,A0090265, 27/11/2018,AAS0292324,211.79,N,N/A,N,N/A,,
Pendle Borough Council,Financial Services,Transport Related Expense,Diesel Oil,3202,FUELMATE LTD,A0090265, 06/11/2018,AAS0292047,237.11,N,N/A,N,N/A,,
Pendle Borough Council,Financial Services,Transport Related Expense,Diesel Oil,3202,FUELMATE LTD,A0090265, 27/11/2018,AAS0292324,175.55,N,N/A,N,N/A,,
Pendle Borough Council,Financial Services,Transport Related Expense,Diesel Oil,3202,FUELMATE LTD,A0090265, 06/11/2018,AAS0292047,191.73,N,N/A,N,N/A,,
Pendle Borough Council,Financial Services,Transport Related Expense,Diesel Oil,3202,FUELMATE LTD,A0090265, 13/11/2018,AAS0292051,194.66,N,N/A,N,N/A,,
Pendle Borough Council,Financial Services,Transport Related Expense,Diesel Oil,3202,FUELMATE LTD,A0090265, 20/11/2018,AAS0292172,196.58,N,N/A,N,N/A,,
Pendle Borough Council,Financial Services,Transport Related Expense,Diesel Oil,3202,FUELMATE LTD,A0090265, 06/11/2018,AAS0292047,84.40,N,N/A,N,N/A,,
Pendle Borough Council,Financial Services,Transport Related Expense,Diesel Oil,3202,FUELMATE LTD,A0090265, 20/11/2018,AAS0292172,193.95,N,N/A,N,N/A,,
Pendle Borough Council,Financial Services,Transport Related Expense,Diesel Oil,3202,FUELMATE LTD,A0090265, 27/11/2018,AAS0292324,217.78,N,N/A,N,N/A,,
Pendle Borough Council,Financial Services,Transport Related Expense,Diesel Oil,3202,FUELMATE LTD,A0090265, 13/11/2018,AAS0292051,235.65,N,N/A,N,N/A,,
Pendle Borough Council,Financial Services,Transport Related Expense,Diesel Oil,3202,FUELMATE LTD,A0090265, 27/11/2018,AAS0292324,79.39,N,N/A,N,N/A,,
Pendle Borough Council,Financial Services,Transport Related Expense,Diesel Oil,3202,FUELMATE LTD,A0090265, 27/11/2018,AAS0292324,61.95,N,N/A,N,N/A,,
Pendle Borough Council,Financial Services,Transport Related Expense,Diesel Oil,3202,FUELMATE LTD,A0090265, 06/11/2018,AAS0292047,62.42,N,N/A,N,N/A,,
Pendle Borough Council,Financial Services,Transport Related Expense,Diesel Oil,3202,FUELMATE LTD,A0090265, 27/11/2018,AAS0292324,50.36,N,N/A,N,N/A,,
Pendle Borough Council,Financial Services,Transport Related Expense,Diesel Oil,3202,FUELMATE LTD,A0090265, 13/11/2018,AAS0292051,51.99,N,N/A,N,N/A,,
Pendle Borough Council,Financial Services,Transport Related Expense,Diesel Oil,3202,FUELMATE LTD,A0090265, 06/11/2018,AAS0292047,34.19,N,N/A,N,N/A,,
Pendle Borough Council,Financial Services,Transport Related Expense,Diesel Oil,3202,FUELMATE LTD,A0090265, 20/11/2018,AAS0292172,35.49,N,N/A,N,N/A,,
Pendle Borough Council,Financial Services,Transport Related Expense,Diesel Oil,3202,FUELMATE LTD,A0090265, 27/11/2018,AAS0292324,39.85,N,N/A,N,N/A,,
Pendle Borough Council,Financial Services,Transport Related Expense,Diesel Oil,3202,FUELMATE LTD,A0090265, 13/11/2018,AAS0292051,40.18,N,N/A,N,N/A,,
Pendle Borough Council,Financial Services,Transport Related Expense,Diesel Oil,3202,FUELMATE LTD,A0090265, 20/11/2018,AAS0292172,35.49,N,N/A,N,N/A,,
Pendle Borough Council,Financial Services,Transport Related Expense,Diesel Oil,3202,FUELMATE LTD,A0090265, 06/11/2018,AAS0292047,80.61,N,N/A,N,N/A,,
Pendle Borough Council,Financial Services,Transport Related Expense,Diesel Oil,3202,FUELMATE LTD,A0090265, 27/11/2018,AAS0292324,113.58,N,N/A,N,N/A,,
Pendle Borough Council,Financial Services,Transport Related Expense,Diesel Oil,3202,FUELMATE LTD,A0090265, 13/11/2018,AAS0292051,151.26,N,N/A,N,N/A,,
Pendle Borough Council,Financial Services,Transport Related Expense,Diesel Oil,3202,FUELMATE LTD,A0090265, 13/11/2018,AAS0292051,35.72,N,N/A,N,N/A,,
Pendle Borough Council,Financial Services,Transport Related Expense,Diesel Oil,3202,FUELMATE LTD,A0090265, 20/11/2018,AAS0292172,94.35,N,N/A,N,N/A,,
Pendle Borough Council,Financial Services,Transport Related Expense,Diesel Oil,3202,FUELMATE LTD,A0090265, 27/11/2018,AAS0292324,57.07,N,N/A,N,N/A,,
Pendle Borough Council,Financial Services,Transport Related Expense,Diesel Oil,3202,FUELMATE LTD,A0090265, 13/11/2018,AAS0292051,57.43,N,N/A,N,N/A,,
Pendle Borough Council,Financial Services,Transport Related Expense,Diesel Oil,3202,FUELMATE LTD,A0090265, 06/11/2018,AAS0292047,63.05,N,N/A,N,N/A,,
Pendle Borough Council,Financial Services,Transport Related Expense,Diesel Oil,3202,FUELMATE LTD,A0090265, 20/11/2018,AAS0292172,63.86,N,N/A,N,N/A,,
Pendle Borough Council,Financial Services,Transport Related Expense,Diesel Oil,3202,FUELMATE LTD,A0090265, 06/11/2018,AAS0292047,35.99,N,N/A,N,N/A,,
Pendle Borough Council,Financial Services,Transport Related Expense,Diesel Oil,3202,FUELMATE LTD,A0090265, 20/11/2018,AAS0292172,59.59,N,N/A,N,N/A,,
Pendle Borough Council,Financial Services,Transport Related Expense,Diesel Oil,3202,FUELMATE LTD,A0090265, 27/11/2018,AAS0292324,62.78,N,N/A,N,N/A,,
Pendle Borough Council,Financial Services,Transport Related Expense,Diesel Oil,3202,FUELMATE LTD,A0090265, 13/11/2018,AAS0292051,68.06,N,N/A,N,N/A,,
Pendle Borough Council,Financial Services,Transport Related Expense,Diesel Oil,3202,FUELMATE LTD,A0090265, 13/11/2018,AAS0292051,62.79,N,N/A,N,N/A,,
Pendle Borough Council,Financial Services,Transport Related Expense,Diesel Oil,3202,FUELMATE LTD,A0090265, 20/11/2018,AAS0292172,72.61,N,N/A,N,N/A,,
Pendle Borough Council,Financial Services,Transport Related Expense,Diesel Oil,3202,FUELMATE LTD,A0090265, 27/11/2018,AAS0292324,74.95,N,N/A,N,N/A,,
Pendle Borough Council,Financial Services,Transport Related Expense,Diesel Oil,3202,FUELMATE LTD,A0090265, 27/11/2018,AAS0292324,59.49,N,N/A,N,N/A,,
Pendle Borough Council,Financial Services,Transport Related Expense,Diesel Oil,3202,FUELMATE LTD,A0090265, 13/11/2018,AAS0292051,57.52,N,N/A,N,N/A,,
Pendle Borough Council,Financial Services,Transport Related Expense,Diesel Oil,3202,FUELMATE LTD,A0090265, 13/11/2018,AAS0292051,53.30,N,N/A,N,N/A,,
Pendle Borough Council,Financial Services,Transport Related Expense,Diesel Oil,3202,FUELMATE LTD,A0090265, 20/11/2018,AAS0292172,55.52,N,N/A,N,N/A,,
Pendle Borough Council,Financial Services,Transport Related Expense,Diesel Oil,3202,FUELMATE LTD,A0090265, 13/11/2018,AAS0292051,62.50,N,N/A,N,N/A,,
Pendle Borough Council,Financial Services,Transport Related Expense,Diesel Oil,3202,FUELMATE LTD,A0090265, 27/11/2018,AAS0292324,29.63,N,N/A,N,N/A,,
Pendle Borough Council,Financial Services,Transport Related Expense,Diesel Oil,3202,FUELMATE LTD,A0090265, 13/11/2018,AAS0292051,34.82,N,N/A,N,N/A,,
Pendle Borough Council,Financial Services,Transport Related Expense,Diesel Oil,3202,FUELMATE LTD,A0090265, 13/11/2018,AAS0292051,48.68,N,N/A,N,N/A,,
Pendle Borough Council,Financial Services,Transport Related Expense,Diesel Oil,3202,FUELMATE LTD,A0090265, 27/11/2018,AAS0292324,26.74,N,N/A,N,N/A,,
Pendle Borough Council,Financial Services,Transport Related Expense,Diesel Oil,3202,FUELMATE LTD,A0090265, 20/11/2018,AAS0292172,81.15,N,N/A,N,N/A,,
Pendle Borough Council,Financial Services,Transport Related Expense,Diesel Oil,3202,FUELMATE LTD,A0090265, 06/11/2018,AAS0292047,83.59,N,N/A,N,N/A,,
Pendle Borough Council,Financial Services,Transport Related Expense,Diesel Oil,3202,FUELMATE LTD,A0090265, 13/11/2018,AAS0292051,268.05,N,N/A,N,N/A,,
Pendle Borough Council,Financial Services,Transport Related Expense,Diesel Oil,3202,FUELMATE LTD,A0090265, 06/11/2018,AAS0292047,78.41,N,N/A,N,N/A,,
Pendle Borough Council,Financial Services,Transport Related Expense,Diesel Oil,3202,FUELMATE LTD,A0090265, 27/11/2018,AAS0292324,98.03,N,N/A,N,N/A,,
Pendle Borough Council,Financial Services,Transport Related Expense,Diesel Oil,3202,FUELMATE LTD,A0090265, 27/11/2018,AAS0292324,66.50,N,N/A,N,N/A,,
Pendle Borough Council,Financial Services,Transport Related Expense,Diesel Oil,3202,FUELMATE LTD,A0090265, 06/11/2018,AAS0292047,67.65,N,N/A,N,N/A,,
Pendle Borough Council,Financial Services,Transport Related Expense,Diesel Oil,3202,FUELMATE LTD,A0090265, 20/11/2018,AAS0292172,68.02,N,N/A,N,N/A,,
Pendle Borough Council,Financial Services,Transport Related Expense,Diesel Oil,3202,FUELMATE LTD,A0090265, 06/11/2018,AAS0292047,60.35,N,N/A,N,N/A,,
Pendle Borough Council,Financial Services,Transport Related Expense,Diesel Oil,3202,FUELMATE LTD,A0090265, 27/11/2018,AAS0292324,61.95,N,N/A,N,N/A,,
Pendle Borough Council,Financial Services,Transport Related Expense,Diesel Oil,3202,FUELMATE LTD,A0090265, 20/11/2018,AAS0292172,62.48,N,N/A,N,N/A,,
Pendle Borough Council,Financial Services,Transport Related Expense,Diesel Oil,3202,FUELMATE LTD,A0090265, 13/11/2018,AAS0292051,67.29,N,N/A,N,N/A,,
Pendle Borough Council,Financial Services,Transport Related Expense,Diesel Oil,3202,FUELMATE LTD,A0090265, 20/11/2018,AAS0292172,67.36,N,N/A,N,N/A,,
Pendle Borough Council,Financial Services,Transport Related Expense,Diesel Oil,3202,FUELMATE LTD,A0090265, 20/11/2018,AAS0292172,58.63,N,N/A,N,N/A,,
Pendle Borough Council,Financial Services,Transport Related Expense,Diesel Oil,3202,FUELMATE LTD,A0090265, 06/11/2018,AAS0292047,66.69,N,N/A,N,N/A,,
Pendle Borough Council,Financial Services,Transport Related Expense,Diesel Oil,3202,FUELMATE LTD,A0090265, 20/11/2018,AAS0292172,61.88,N,N/A,N,N/A,,
Pendle Borough Council,Financial Services,Transport Related Expense,Diesel Oil,3202,FUELMATE LTD,A0090265, 27/11/2018,AAS0292324,72.32,N,N/A,N,N/A,,
Pendle Borough Council,Financial Services,Transport Related Expense,Diesel Oil,3202,FUELMATE LTD,A0090265, 13/11/2018,AAS0292051,70.02,N,N/A,N,N/A,,
Pendle Borough Council,Financial Services,Transport Related Expense,Diesel Oil,3202,FUELMATE LTD,A0090265, 06/11/2018,AAS0292047,46.95,N,N/A,N,N/A,,
Pendle Borough Council,Financial Services,Transport Related Expense,Diesel Oil,3202,FUELMATE LTD,A0090265, 13/11/2018,AAS0292051,63.88,N,N/A,N,N/A,,
Pendle Borough Council,Financial Services,Transport Related Expense,Diesel Oil,3202,FUELMATE LTD,A0090265, 06/11/2018,AAS0292047,8.73,N,N/A,N,N/A,,
Pendle Borough Council,Financial Services,Transport Related Expense,Diesel Oil,3202,FUELMATE LTD,A0090265, 27/11/2018,AAS0292324,35.64,N,N/A,N,N/A,,
Pendle Borough Council,Financial Services,Transport Related Expense,Diesel Oil,3202,FUELMATE LTD,A0090265, 13/11/2018,AAS0292051,56.05,N,N/A,N,N/A,,
Pendle Borough Council,Financial Services,Transport Related Expense,Diesel Oil,3202,FUELMATE LTD,A0090265, 20/11/2018,AAS0292172,78.42,N,N/A,N,N/A,,
Pendle Borough Council,Economic Development & Tourism,Supplies and Services,Grants/Contributions,4739,MERC AEROSPACE LIMITED,A0090295, 29/11/2018,REG0292299,8000.00,N,N/A,N,N/A,,
Pendle Borough Council,Human Resources,Supplies and Services,Seminars etc All Costs,4601,10 EIGHTY LIMITED,A0090349, 01/11/2018,PER0291655,35.00,N,N/A,N,N/A,,
Pendle Borough Council,Economic Development & Tourism,Supplies and Services,Grants/Contributions,4739,ENTERPRISE LANCASHIRE LIMITED,A0090413, 01/11/2018,REG0291692,1700.00,N,N/A,N,N/A,,
Pendle Borough Council,Economic Development & Tourism,Supplies and Services,Grants/Contributions,4739,LOVE LOCAL SOLUTIONS LIMITED,A0090486, 01/11/2018,REG0291691,295.00,N,N/A,N,N/A,,
Pendle Borough Council,Engineering & Special Projects,Capital Costs,Capital : Payments,CD14,HIGHAM WITH WEST CLOSE BOOTH PC,A0090493, 15/11/2018,HED0291990,2000.00,N,N/A,N,N/A,,
Pendle Borough Council,Planning & Building Control,Supplies and Services,Planning Appeals,4415,REDACTED - PERSONAL DATA,A0090517, 15/11/2018,PBC0291983,5422.40,N,N/A,N,N/A,,
Pendle Borough Council,Operational Services,Supplies and Services,Veterinary Fees,4405,VETS 4 PETS,A0090525, 08/11/2018,OPS0291907,12.50,N,N/A,N,N/A,,
Pendle Borough Council,Operational Services,Supplies and Services,EFM : Other Equipment,4003,R S ASBESTOS LIMITED,A0090548, 08/11/2018,OPS0291877,695.00,N,N/A,N,N/A,,
Pendle Borough Council,Operational Services,Supplies and Services,Sub-Contractors,4007,R S ASBESTOS LIMITED,A0090548, 08/11/2018,OPS0291892,595.00,N,N/A,N,N/A,,
Pendle Borough Council,Housing Regeneration Services,Supplies and Services,Other Expenses,4705,REDACTED - PERSONAL DATA,A0090599, 22/11/2018,HMR0292055,4.00,N,N/A,N,N/A,,
Pendle Borough Council,Revenues Services,Supplies and Services,Consultants Fees,4401,PS&P LTD,A0090720, 01/11/2018,TRE0291653,25.00,N,N/A,N,N/A,,
Pendle Borough Council,Revenues Services,Supplies and Services,Consultants Fees,4401,PS&P LTD,A0090720, 15/11/2018,TRE0292024,37.00,N,N/A,N,N/A,,
Pendle Borough Council,Revenues Services,Supplies and Services,Consultants Fees,4401,PS&P LTD,A0090720, 01/11/2018,TRE0291652,75.02,N,N/A,N,N/A,,
Pendle Borough Council,Operational Services,Agency Staff,Emp : Agency Wages,1004,M65 JOBSEARCH LIMITED,A0090760, 08/11/2018,OPS0291899,108.07,N,N/A,N,N/A,,
Pendle Borough Council,Operational Services,Agency Staff,Emp : Agency Wages,1004,M65 JOBSEARCH LIMITED,A0090760, 22/11/2018,OPS0292100,118.89,N,N/A,N,N/A,,
Pendle Borough Council,Operational Services,Agency Staff,Emp : Agency Wages,1004,M65 JOBSEARCH LIMITED,A0090760, 22/11/2018,OPS0292101,151.31,N,N/A,N,N/A,,
Pendle Borough Council,Operational Services,Agency Staff,Emp : Agency Wages,1004,M65 JOBSEARCH LIMITED,A0090760, 08/11/2018,OPS0291903,208.95,N,N/A,N,N/A,,
Pendle Borough Council,Operational Services,Agency Staff,Emp : Agency Wages,1004,M65 JOBSEARCH LIMITED,A0090760, 01/11/2018,OPS0291651,216.15,N,N/A,N,N/A,,
Pendle Borough Council,Operational Services,Agency Staff,Emp : Agency Wages,1004,M65 JOBSEARCH LIMITED,A0090760, 08/11/2018,OPS0291903,302.63,N,N/A,N,N/A,,
Pendle Borough Council,Operational Services,Agency Staff,Emp : Agency Wages,1004,M65 JOBSEARCH LIMITED,A0090760, 22/11/2018,OPS0292100,335.03,N,N/A,N,N/A,,
Pendle Borough Council,Operational Services,Agency Staff,Emp : Agency Wages,1004,M65 JOBSEARCH LIMITED,A0090760, 22/11/2018,OPS0292101,425.10,N,N/A,N,N/A,,
Pendle Borough Council,Operational Services,Agency Staff,Emp : Agency Wages,1004,M65 JOBSEARCH LIMITED,A0090760, 08/11/2018,OPS0291899,457.53,N,N/A,N,N/A,,
Pendle Borough Council,Economic Development & Tourism,Supplies and Services,Other Expenses,4705,KOLEK CONSULTING LIMITED,A0090905, 01/11/2018,REG0291693,3146.31,N,N/A,N,N/A,,
Pendle Borough Council,Engineering & Special Projects,Supplies and Services,Grants/Contributions,4739,CHANGING ROLES LIMITED,A0090975, 08/11/2018,HED0291762,500.00,N,N/A,N,N/A,,
Pendle Borough Council,Operational Services,Indirect Employee Expenses,Emp : Medical Expenses,1236,ALCODIGITAL LIMITED,A0091044, 29/11/2018,OPS0292282,50.25,N,N/A,N,N/A,,
Pendle Borough Council,Housing Regeneration Services,Capital Costs,Ren Grant : 1996 Act,CH22,D Y BUILDING SERVICES,A0091159, 22/11/2018,HMR0292085,1880.00,N,N/A,N,0,,
Pendle Borough Council,Housing Regeneration Services,Capital Costs,Capital : Payments,CD14,CADENT GAS LIMITED,A0091199, 22/11/2018,HMR0292056,1111.00,N,N/A,N,N/A,,
Pendle Borough Council,Democratic & Legal Services,Supplies and Services,EFM : Office and computer equipment,4002,RESTORE DATASHRED,A0091201, 22/11/2018,DAL0292120,112.21,N,N/A,N,N/A,,
Pendle Borough Council,Democratic & Legal Services,Supplies and Services,Printing & Stationery,4301,RESTORE DATASHRED,A0091201, 22/11/2018,DAL0292120,32.06,N,N/A,N,N/A,,
Pendle Borough Council,Democratic & Legal Services,Supplies and Services,Printing & Stationery,4301,RESTORE DATASHRED,A0091201, 22/11/2018,DAL0292120,23.14,N,N/A,N,N/A,,
Pendle Borough Council,Democratic & Legal Services,Supplies and Services,Printing & Stationery,4301,RESTORE DATASHRED,A0091201, 22/11/2018,DAL0292120,27.48,N,N/A,N,N/A,,
Pendle Borough Council,Democratic & Legal Services,Supplies and Services,Printing & Stationery,4301,RESTORE DATASHRED,A0091201, 22/11/2018,DAL0292120,45.80,N,N/A,N,N/A,,
Pendle Borough Council,Democratic & Legal Services,Support Services,Admin Buildings Expenses,7001,RESTORE DATASHRED,A0091201, 22/11/2018,DAL0292120,20.61,N,N/A,N,N/A,,
Pendle Borough Council,Housing Regeneration Services,Capital Costs,Capital : Payments,CD14,FIREFLY ENERGI LIMITED,A0091212, 08/11/2018,HMR0291869,1445.85,N,N/A,N,N/A,,
Pendle Borough Council,Financial Services,Premises Related Expense,Premises Insurance,2801,FUTURE PROPERTIES 1ST LIMITED,A0091296, 08/11/2018,AAS0291828,4083.75,N,N/A,N,N/A,,
Pendle Borough Council,Housing Regeneration Services,Supplies and Services,Other Expenses,4705,FOUR STAR TAXIS,A0091315, 29/11/2018,HMR0292164,25.00,N,N/A,N,N/A,,
Pendle Borough Council,Engineering & Special Projects,Capital Costs,Capital : Payments,CD14,FLOOD PROTECTION SOLUTIONS LIMITED,A0091331, 08/11/2018,HED0291868,80504.26,N,N/A,N,N/A,,
Pendle Borough Council,Parks & Recreation Services,Premises Related Expense,Grounds : R & M : Day to Day : Routine,2101,CMS TREE SERVICES,A0091372, 29/11/2018,PCO0292283,120.00,N,N/A,N,N/A,,
Pendle Borough Council,Planning & Building Control,Premises Related Expense,Grounds : R & M : Day to Day : Routine,2101,CMS TREE SERVICES,A0091372, 01/11/2018,PBC0291690,250.00,N,N/A,N,N/A,,
Pendle Borough Council,Operational Services,Supplies and Services,Miscellaneous : Other,4707,EURO LABELS PRINTERS LIMITED,A0091396, 08/11/2018,OPS0291862,121.26,N,N/A,N,N/A,,
Pendle Borough Council,Engineering & Special Projects,Premises Related Expense,Grounds : R & M : Day to Day : Routine,2101,MARTINS COUNTRYSIDE CONTRACTING LIMITED,A0091415, 08/11/2018,HED0291857,52.50,N,N/A,N,N/A,,
Pendle Borough Council,Operational Services,Transport Related Expense,Tprt : Repairs : General,3105,MATTS SHEET METAL LIMITED,A0091481, 01/11/2018,OPS0291649,1918.60,N,N/A,N,N/A,,
Pendle Borough Council,Information Services,Capital Costs,Capital : Payments,CD14,STORM TECHNOLOGIES LIMITED,A0091493, 15/11/2018,ITS0291988,134.13,N,N/A,N,N/A,,
Pendle Borough Council,Planning & Building Control,,Fees Income : Non-VATable,9302,PORTALPLANQUEST LIMITED,A0091554, 15/11/2018,PBC0291930,20.00,N,N/A,N,N/A,,
Pendle Borough Council,Information Services,Capital Costs,Capital : Payments,cd14,SWITCHSHOP LIMITED,A0091555, 01/11/2018,ITS0291657,1896.92,N,N/A,N,N/A,,
Pendle Borough Council,Parks & Recreation Services,Transport Related Expense,Tprt : Repairs : General,3105,MR JEFFREY WHITTAKER,A0091570, 08/11/2018,PCO0291412,141.89,N,N/A,N,N/A,,
Pendle Borough Council,Financial Services,Supplies and Services,Tests & Inspection Fees,4409,QUALITY CONSULTANTS,A0091576, 29/11/2018,AAS4005974,-50.00,N,N/A,N,N/A,,
Pendle Borough Council,Financial Services,Supplies and Services,Tests & Inspection Fees,4409,QUALITY CONSULTANTS,A0091576, 29/11/2018,AAS4005974,50.00,N,N/A,N,N/A,,
Pendle Borough Council,Housing Regeneration Services,Supplies and Services,Tests & Inspection Fees,4409,QUALITY CONSULTANTS,A0091576, 29/11/2018,HMR0291482,50.00,N,N/A,N,N/A,,
Pendle Borough Council,Planning & Building Control,,Other Income : Non-VATable,9303,KINDERTONS LIMITED,A0091581, 08/11/2018,PBC0291694,138.33,N,N/A,N,N/A,,
Pendle Borough Council,Economic Development & Tourism,Supplies and Services,Other Expenses,4705,JOE HESKETH,A0091582, 01/11/2018,REG0291696,1947.60,N,N/A,N,N/A,,
Pendle Borough Council,Economic Development & Tourism,Supplies and Services,Other Expenses,4705,BEN GATES SOUND SCULPTURES,A0091583, 01/11/2018,REG0291699,4481.00,N,N/A,N,N/A,,
Pendle Borough Council,Housing Regeneration Services,Capital Costs,Capital : Payments,CD14,FOCUS TRANSPORT PLANNING LIMITED,A0091585, 08/11/2018,HMR0291845,455.00,N,N/A,N,N/A,,
Pendle Borough Council,Planning & Building Control,,Other Income : Non-VATable,9303,REDACTED - PERSONAL DATA,A0091586, 08/11/2018,PBC0291867,261.55,N,N/A,N,N/A,,
Pendle Borough Council,Planning & Building Control,,Other Income : Non-VATable,9303,REDACTED - PERSONAL DATA,A0091587, 08/11/2018,PBC0291865,87.18,N,N/A,N,N/A,,
Pendle Borough Council,Operational Services,Agency Staff,Emp : Agency Wages,1004,NW RECRUITMENT SERVICES LIMITED,A0091588, 29/11/2018,OPS0292279,-209.24,N,N/A,N,N/A,,
Pendle Borough Council,Operational Services,Agency Staff,Emp : Agency Wages,1004,NW RECRUITMENT SERVICES LIMITED,A0091588, 29/11/2018,OPS0292271,171.68,N,N/A,N,N/A,,
Pendle Borough Council,Operational Services,Agency Staff,Emp : Agency Wages,1004,NW RECRUITMENT SERVICES LIMITED,A0091588, 29/11/2018,OPS0292272,171.68,N,N/A,N,N/A,,
Pendle Borough Council,Operational Services,Agency Staff,Emp : Agency Wages,1004,NW RECRUITMENT SERVICES LIMITED,A0091588, 15/11/2018,OPS0292001,209.24,N,N/A,N,N/A,,
Pendle Borough Council,Operational Services,Agency Staff,Emp : Agency Wages,1004,NW RECRUITMENT SERVICES LIMITED,A0091588, 29/11/2018,OPS0292279,209.24,N,N/A,N,N/A,,
Pendle Borough Council,Economic Development & Tourism,Capital Costs,Capital : Payments,CD14,ZARA MOON ARCHITECTS,A0091589, 15/11/2018,REG0291978,2124.34,N,N/A,N,N/A,,
Pendle Borough Council,Economic Development & Tourism,Supplies and Services,Grants/Contributions,4739,THOUGHT FOR FOOD,A0091590, 15/11/2018,REG0291977,1050.00,N,N/A,N,N/A,,
Pendle Borough Council,Economic Development & Tourism,Capital Costs,Capital : Payments,CD14,TREVOR DAWSON,A0091591, 15/11/2018,REG0291976,600.00,N,N/A,N,N/A,,
Pendle Borough Council,Planning & Building Control,,Other Income : Non-VATable,9303,REDACTED - PERSONAL DATA,A0091592, 15/11/2018,PBC0292014,87.18,N,N/A,N,N/A,,
Pendle Borough Council,Democratic & Legal Services,Supplies and Services,Other Expenses,4705,Shout Promotions Limited,A0091593, 15/11/2018,DAL0292019,100.00,N,N/A,N,N/A,,
Pendle Borough Council,Democratic & Legal Services,Supplies and Services,Consultants Fees,4401,REDACTED - PERSONAL DATA,A0091595, 22/11/2018,DAL0292023,1000.00,N,N/A,N,N/A,,
Pendle Borough Council,Financial Services,,Other Income : Non-VATable,9303,HUMBLE PIE,A0091599, 29/11/2018,AAS0292312,37.00,N,N/A,N,N/A,,
Pendle Borough Council,Planning & Building Control,,Other Income : Non-VATable,9303,REDACTED - PERSONAL DATA,A0091602, 29/11/2018,PBC0292291,231.65,N,N/A,N,N/A,,
Pendle Borough Council,Economic Development & Tourism,Supplies and Services,Grants/Contributions,4739,FUZION GRILL LIMITED,A0091603, 29/11/2018,REG0292302,977.00,N,N/A,N,N/A,,
